Workbook

Sheet Crash Data
G1: Crash Data | H1: Graphical Analysis | I1: Collision Diagram | J1: Rate Calc Sheet | K1: ROR Analysis | L1: CRF Table
A2: version: 11.02.11 | G2: Data Analysis | H2: Histograms | I2: Resurfacing Analysis | J2: Severity Calc Sheet | K2: Safety App | L2: Help File
A3: =D12&"-"&D13&D14&" - ("&D15&"-"&D16&") "&"From "&MID(D17,5,2)&"/"&MID(D17,7,2)&"/"&LEFT(D17,4)&" to "&MID(D18,5,2)&"/"&MID(D18,7,2)&"/"&LEFT(D18,4) -> - - (-) From // to //
G4: =HYPERLINK("\\itcfs007\odrive\SAFETY\CEN\_Crash Analysis Tools\CAM Tool FS.xls", "Launch: CAM Tool FS-Multi Location Excel File") -> Launch: CAM Tool FS-Multi Location Excel File | J4: =HYPERLINK(CONCATENATE("http://www.dps.state.oh.us/OHCrashReports/"),"Launch: ODPS Crash Reports") -> Launch: ODPS Crash Reports
G5: =+HYPERLINK(CONCATENATE("https://tscas001.dot.state.oh.us/OhioRVX2/Roadview.asp?nlf_id='",+D21,"'&offset=",+E21),"Launch: Video Log") -> Launch: Video Log | J5: =HYPERLINK(CONCATENATE("https://gcat.dot.state.oh.us/SSL/Login.aspx"),"Launch: GIS Crash Analysis Tool (GCAT)") -> Launch: GIS Crash Analysis Tool (GCAT)
G6: =HYPERLINK("http://www.dot.state.oh.us/Divisions/Planning/TechServ/prod_services/Documents/DESTAPECnty/DES"&AY21&".pdg","Launch: ODOT Destape") -> Launch: ODOT Destape | J6: =HYPERLINK(CONCATENATE("http://maps.google.com/maps?"),"Launch: Google Maps") -> Launch: Google Maps
G7: =HYPERLINK("O:\SAFETY\CEN\Access_WorkPlan\Locations Rank Lookup by Year\Safety Location Rankings Lookup Database.mdb","Launch: Safety Location Lookup Database") -> Launch: Safety Location Lookup Database | J7: =HYPERLINK("http://www.bing.com/maps/default.aspx?v=2&cp="&BB21&"~"&BC21&"&style=h&lvl=15","Launch: Bing Maps") -> Launch: Bing Maps
G8: =HYPERLINK("O:\SAFETY","Launch: S/C Work Plan Folder") -> Launch: S/C Work Plan Folder | J8: =HYPERLINK("http://www.mapquest.com/maps/map.adp?formtype=address&country=US&popflag=0&latitude=&longitude=&name=&phone=&level=&addtohistory=&cat=&address=&city=&state=oh&zipcode=","Launch: Mapquest Maps") -> Launch: Mapquest Maps
G9: =HYPERLINK("http://www.odotonline.org/techservapps/SLD/default.htm","Launch: Traffic Survey Reports (ADT)") -> Launch: Traffic Survey Reports (ADT) | J9: =HYPERLINK("http://www.buckeyetraffic.org/","Launch: Buckeye Traffic") -> Launch: Buckeye Traffic
G10: =HYPERLINK("http://www.dot.state.oh.us/Divisions/Planning/ProgramMgt/ProgramManagement/Pages/Safety.aspx","Launch: Highway Safety Website") -> Launch: Highway Safety Website | J10: =HYPERLINK(CONCATENATE("http://data.mashedworld.com/dualmaps/map.htm?x=",BC21,"&y=",BB21,"&z=15&gm=0&ve=5&gc=0&bz=1&bd=0&mw=1&sv=1&svb=0&svp=0&svz=0&svm=2&svf=0"),"Launch: Mashed Map") -> Launch: Mashed Map
BF17: =IF(BD17="","",IF(OR(O17="INJURY CRASH",O17="FATAL CRASH"),"YES","NO")) ->  | BG17: =IF(BD17="","",IF(OR(Q17="ROAD - SNOW",Q17="ROAD - ICE"),"YES","NO")) ->  | BH17: =IF(BD17="","",IF(OR(L17="DAWN",L17="DUSK"),"YES","NO")) ->  | BI17: =IF(BD17="","",IF(OR(L17="DARK - NO LIGHTS",L17="DARK - LIGHTED"),"YES","NO")) ->  | BJ17: =IF(BD17="","",IF(AND(BD17=2006,BF17="NO",L17="DAYLIGHT"),"2006",IF(AND(BD17=2007,BF17="NO",L17="DAYLIGHT"),"2007",IF(AND(BD17=2008,BF17="NO",L17="DAYLIGHT"),"2008",IF(AND(BD17=2009,BF17="NO",L17="DAYLIGHT"),"2009",IF(AND(BD17=2010,BF17="NO",L17="DAYLIGHT"),"2010",IF(AND(BD17=2005,BF17="NO",L17="DAYLIGHT"),"2005",""))))))) ->  | BK17: =IF(BD17="","",IF(AND(BD17=2006,BF17="YES",L17="DAYLIGHT"),"2006",IF(AND(BD17=2007,BF17="YES",L17="DAYLIGHT"),"2007",IF(AND(BD17=2008,BF17="YES",L17="DAYLIGHT"),"2008",IF(AND(BD17=2009,BF17="YES",L17="DAYLIGHT"),"2009",IF(AND(BD17=2010,BF17="YES",L17="DAYLIGHT"),"2010",IF(AND(BD17=2005,BF17="YES",L17="DAYLIGHT"),"2005",""))))))) ->  | BL17: =IF(BD17="","",IF(AND(BD17=2006,BF17="NO",BH17="YES"),"2006",IF(AND(BD17=2007,BF17="NO",BH17="YES"),"2007",IF(AND(BD17=2008,BF17="NO",BH17="YES"),"2008",IF(AND(BD17=2009,BF17="NO",BH17="YES"),"2009",IF(AND(BD17=2010,BF17="NO",BH17="YES"),"2010",IF(AND(BD17=2005,BF17="NO",BH17="YES"),"2005",""))))))) ->  | BM17: =IF(BD17="","",IF(AND(BD17=2006,BF17="YES",BH17="YES"),"2006",IF(AND(BD17=2007,BF17="YES",BH17="YES"),"2007",IF(AND(BD17=2008,BF17="YES",BH17="YES"),"2008",IF(AND(BD17=2009,BF17="YES",BH17="YES"),"2009",IF(AND(BD17=2010,BF17="YES",BH17="YES"),"2010",IF(AND(BD17=2005,BF17="YES",BH17="YES"),"2005",""))))))) ->  | BN17: =IF(BD17="","",IF(AND(BD17=2006,BF17="NO",BI17="YES"),"2006",IF(AND(BD17=2007,BF17="NO",BI17="YES"),"2007",IF(AND(BD17=2008,BF17="NO",BI17="YES"),"2008",IF(AND(BD17=2009,BF17="NO",BI17="YES"),"2009",IF(AND(BD17=2010,BF17="NO",BI17="YES"),"2010",IF(AND(BD17=2005,BF17="NO",BI17="YES"),"2005",""))))))) ->  | BO17: =IF(BD17="","",IF(AND(BD17=2006,BF17="YES",BI17="YES"),"2006",IF(AND(BD17=2007,BF17="YES",BI17="YES"),"2007",IF(AND(BD17=2008,BF17="YES",BI17="YES"),"2008",IF(AND(BD17=2009,BF17="YES",BI17="YES"),"2009",IF(AND(BD17=2010,BF17="YES",BI17="YES"),"2010",IF(AND(BD17=2005,BF17="YES",BI17="YES"),"2005",""))))))) ->  | BP17: =IF(BD17="","",IF(AND(BD17=2006,BF17="NO",Q17="ROAD - DRY"),"2006",IF(AND(BD17=2007,BF17="NO",Q17="ROAD - DRY"),"2007",IF(AND(BD17=2008,BF17="NO",Q17="ROAD - DRY"),"2008",IF(AND(BD17=2009,BF17="NO",Q17="ROAD - DRY"),"2009",IF(AND(BD17=2010,BF17="NO",Q17="ROAD - DRY"),"2010",IF(AND(BD17=2005,BF17="NO",Q17="ROAD - DRY"),"2005",""))))))) ->  | BQ17: =IF(BD17="","",IF(AND(BD17=2006,BF17="YES",Q17="ROAD - DRY"),"2006",IF(AND(BD17=2007,BF17="YES",Q17="ROAD - DRY"),"2007",IF(AND(BD17=2008,BF17="YES",Q17="ROAD - DRY"),"2008",IF(AND(BD17=2009,BF17="YES",Q17="ROAD - DRY"),"2009",IF(AND(BD17=2010,BF17="YES",Q17="ROAD - DRY"),"2010",IF(AND(BD17=2005,BF17="YES",Q17="ROAD - DRY"),"2005",""))))))) ->  | BR17: =IF(BD17="","",IF(AND(BD17=2006,BF17="NO",Q17="ROAD - WET"),"2006",IF(AND(BD17=2007,BF17="NO",Q17="ROAD - WET"),"2007",IF(AND(BD17=2008,BF17="NO",Q17="ROAD - WET"),"2008",IF(AND(BD17=2009,BF17="NO",Q17="ROAD - WET"),"2009",IF(AND(BD17=2010,BF17="NO",Q17="ROAD - WET"),"2010",IF(AND(BD17=2005,BF17="NO",Q17="ROAD - WET"),"2005",""))))))) ->  | BS17: =IF(BD17="","",IF(AND(BD17=2006,BF17="YES",Q17="ROAD - WET"),"2006",IF(AND(BD17=2007,BF17="YES",Q17="ROAD - WET"),"2007",IF(AND(BD17=2008,BF17="YES",Q17="ROAD - WET"),"2008",IF(AND(BD17=2009,BF17="YES",Q17="ROAD - WET"),"2009",IF(AND(BD17=2010,BF17="YES",Q17="ROAD - WET"),"2010",IF(AND(BD17=2005,BF17="YES",Q17="ROAD - WET"),"2005",""))))))) ->  | BT17: =IF(BD17="","",IF(AND(BD17=2006,BF17="NO",BG17="YES"),"2006",IF(AND(BD17=2007,BF17="NO",BG17="YES"),"2007",IF(AND(BD17=2008,BF17="NO",BG17="YES"),"2008",IF(AND(BD17=2009,BF17="NO",BG17="YES"),"2009",IF(AND(BD17=2010,BF17="NO",BG17="YES"),"2010",IF(AND(BD17=2005,BF17="NO",BG17="YES"),"2005",""))))))) ->  | BU17: =IF(BD17="","",IF(AND(BD17=2006,BF17="YES",BG17="YES"),"2006",IF(AND(BD17=2007,BF17="YES",BG17="YES"),"2007",IF(AND(BD17=2008,BF17="YES",BG17="YES"),"2008",IF(AND(BD17=2009,BF17="YES",BG17="YES"),"2009",IF(AND(BD17=2010,BF17="YES",BG17="YES"),"2010",IF(AND(BD17=2005,BF17="YES",BG17="YES"),"2005",""))))))) ->  | BV17: =IF(BD17="","",IF(AND(BD17=2006,BF17="NO",M17="REAR END"),"2006",IF(AND(BD17=2007,BF17="NO",M17="REAR END"),"2007",IF(AND(BD17=2008,BF17="NO",M17="REAR END"),"2008",IF(AND(BD17=2009,BF17="NO",M17="REAR END"),"2009",IF(AND(BD17=2010,BF17="NO",M17="REAR END"),"2010",IF(AND(BD17=2005,BF17="NO",M17="REAR END"),"2005",""))))))) ->  | BW17: =IF(BD17="","",IF(AND(BD17=2006,BF17="YES",M17="REAR END"),"2006",IF(AND(BD17=2007,BF17="YES",M17="REAR END"),"2007",IF(AND(BD17=2008,BF17="YES",M17="REAR END"),"2008",IF(AND(BD17=2009,BF17="YES",M17="REAR END"),"2009",IF(AND(BD17=2010,BF17="YES",M17="REAR END"),"2010",IF(AND(BD17=2005,BF17="YES",M17="REAR END"),"2005",""))))))) ->  | BX17: =IF(BD17="","",IF(AND(BD17=2006,BF17="NO",M17="LEFT TURN"),"2006",IF(AND(BD17=2007,BF17="NO",M17="LEFT TURN"),"2007",IF(AND(BD17=2008,BF17="NO",M17="LEFT TURN"),"2008",IF(AND(BD17=2009,BF17="NO",M17="LEFT TURN"),"2009",IF(AND(BD17=2010,BF17="NO",M17="LEFT TURN"),"2010",IF(AND(BD17=2005,BF17="NO",M17="LEFT TURN"),"2005",""))))))) ->  | BY17: =IF(BD17="","",IF(AND(BD17=2006,BF17="YES",M17="LEFT TURN"),"2006",IF(AND(BD17=2007,BF17="YES",M17="LEFT TURN"),"2007",IF(AND(BD17=2008,BF17="YES",M17="LEFT TURN"),"2008",IF(AND(BD17=2009,BF17="YES",M17="LEFT TURN"),"2009",IF(AND(BD17=2010,BF17="YES",M17="LEFT TURN"),"2010",IF(AND(BD17=2005,BF17="YES",M17="LEFT TURN"),"2005",""))))))) ->  | BZ17: =IF(BD17="","",IF(AND(BD17=2006,BF17="NO",M17="RIGHT TURN"),"2006",IF(AND(BD17=2007,BF17="NO",M17="RIGHT TURN"),"2007",IF(AND(BD17=2008,BF17="NO",M17="RIGHT TURN"),"2008",IF(AND(BD17=2009,BF17="NO",M17="RIGHT TURN"),"2009",IF(AND(BD17=2010,BF17="NO",M17="RIGHT TURN"),"2010",IF(AND(BD17=2005,BF17="NO",M17="RIGHT TURN"),"2005",""))))))) ->  | CA17: =IF(BD17="","",IF(AND(BD17=2006,BF17="YES",M17="RIGHT TURN"),"2006",IF(AND(BD17=2007,BF17="YES",M17="RIGHT TURN"),"2007",IF(AND(BD17=2008,BF17="YES",M17="RIGHT TURN"),"2008",IF(AND(BD17=2009,BF17="YES",M17="RIGHT TURN"),"2009",IF(AND(BD17=2010,BF17="YES",M17="RIGHT TURN"),"2010",IF(AND(BD17=2005,BF17="YES",M17="RIGHT TURN"),"2005",""))))))) ->  | CB17: =IF(BD17="","",IF(AND(BD17=2006,BF17="NO",M17="ANGLE"),"2006",IF(AND(BD17=2007,BF17="NO",M17="ANGLE"),"2007",IF(AND(BD17=2008,BF17="NO",M17="ANGLE"),"2008",IF(AND(BD17=2009,BF17="NO",M17="ANGLE"),"2009",IF(AND(BD17=2010,BF17="NO",M17="ANGLE"),"2010",IF(AND(BD17=2005,BF17="NO",M17="ANGLE"),"2005",""))))))) ->  | CC17: =IF(BD17="","",IF(AND(BD17=2006,BF17="YES",M17="ANGLE"),"2006",IF(AND(BD17=2007,BF17="YES",M17="ANGLE"),"2007",IF(AND(BD17=2008,BF17="YES",M17="ANGLE"),"2008",IF(AND(BD17=2009,BF17="YES",M17="ANGLE"),"2009",IF(AND(BD17=2010,BF17="YES",M17="ANGLE"),"2010",IF(AND(BD17=2005,BF17="YES",M17="ANGLE"),"2005",""))))))) ->  | CD17: =IF(BD17="","",IF(AND(BD17=2006,BF17="NO",M17="HEAD ON"),"2006",IF(AND(BD17=2007,BF17="NO",M17="HEAD ON"),"2007",IF(AND(BD17=2008,BF17="NO",M17="HEAD ON"),"2008",IF(AND(BD17=2009,BF17="NO",M17="HEAD ON"),"2009",IF(AND(BD17=2010,BF17="NO",M17="HEAD ON"),"2010",IF(AND(BD17=2005,BF17="NO",M17="HEAD ON"),"2005",""))))))) ->  | CE17: =IF(BD17="","",IF(AND(BD17=2006,BF17="YES",M17="HEAD ON"),"2006",IF(AND(BD17=2007,BF17="YES",M17="HEAD ON"),"2007",IF(AND(BD17=2008,BF17="YES",M17="HEAD ON"),"2008",IF(AND(BD17=2009,BF17="YES",M17="HEAD ON"),"2009",IF(AND(BD17=2010,BF17="YES",M17="HEAD ON"),"2010",IF(AND(BD17=2005,BF17="YES",M17="HEAD ON"),"2005",""))))))) ->  | CF17: =IF(BD17="","",IF(AND(BD17=2006,BF17="NO",M17="SIDESWIPE - PASSING"),"2006",IF(AND(BD17=2007,BF17="NO",M17="SIDESWIPE - PASSING"),"2007",IF(AND(BD17=2008,BF17="NO",M17="SIDESWIPE - PASSING"),"2008",IF(AND(BD17=2009,BF17="NO",M17="SIDESWIPE - PASSING"),"2009",IF(AND(BD17=2010,BF17="NO",M17="SIDESWIPE - PASSING"),"2010",IF(AND(BD17=2005,BF17="NO",M17="SIDESWIPE - PASSING"),"2005",""))))))) ->  | CG17: =IF(BD17="","",IF(AND(BD17=2006,BF17="YES",M17="SIDESWIPE - PASSING"),"2006",IF(AND(BD17=2007,BF17="YES",M17="SIDESWIPE - PASSING"),"2007",IF(AND(BD17=2008,BF17="YES",M17="SIDESWIPE - PASSING"),"2008",IF(AND(BD17=2009,BF17="YES",M17="SIDESWIPE - PASSING"),"2009",IF(AND(BD17=2010,BF17="YES",M17="SIDESWIPE - PASSING"),"2010",IF(AND(BD17=2005,BF17="YES",M17="SIDESWIPE - PASSING"),"2005",""))))))) ->  | CH17: =IF(BD17="","",IF(AND(BD17=2006,BF17="NO",M17="FIXED OBJECT"),"2006",IF(AND(BD17=2007,BF17="NO",M17="FIXED OBJECT"),"2007",IF(AND(BD17=2008,BF17="NO",M17="FIXED OBJECT"),"2008",IF(AND(BD17=2009,BF17="NO",M17="FIXED OBJECT"),"2009",IF(AND(BD17=2010,BF17="NO",M17="FIXED OBJECT"),"2010",IF(AND(BD17=2005,BF17="NO",M17="FIXED OBJECT"),"2005",""))))))) ->  | CI17: =IF(BD17="","",IF(AND(BD17=2006,BF17="YES",M17="FIXED OBJECT"),"2006",IF(AND(BD17=2007,BF17="YES",M17="FIXED OBJECT"),"2007",IF(AND(BD17=2008,BF17="YES",M17="FIXED OBJECT"),"2008",IF(AND(BD17=2009,BF17="YES",M17="FIXED OBJECT"),"2009",IF(AND(BD17=2010,BF17="YES",M17="FIXED OBJECT"),"2010",IF(AND(BD17=2005,BF17="YES",M17="FIXED OBJECT"),"2005",""))))))) ->  | CJ17: =IF(BD17="","",IF(AND(BD17=2006,BF17="NO",M17="RAN OFF ROAD"),"2006",IF(AND(BD17=2007,BF17="NO",M17="RAN OFF ROAD"),"2007",IF(AND(BD17=2008,BF17="NO",M17="RAN OFF ROAD"),"2008",IF(AND(BD17=2009,BF17="NO",M17="RAN OFF ROAD"),"2009",IF(AND(BD17=2010,BF17="NO",M17="RAN OFF ROAD"),"2010",IF(AND(BD17=2005,BF17="NO",M17="RAN OFF ROAD"),"2005",""))))))) ->  | CK17: =IF(BD17="","",IF(AND(BD17=2006,BF17="YES",M17="RAN OFF ROAD"),"2006",IF(AND(BD17=2007,BF17="YES",M17="RAN OFF ROAD"),"2007",IF(AND(BD17=2008,BF17="YES",M17="RAN OFF ROAD"),"2008",IF(AND(BD17=2009,BF17="YES",M17="RAN OFF ROAD"),"2009",IF(AND(BD17=2010,BF17="YES",M17="RAN OFF ROAD"),"2010",IF(AND(BD17=2005,BF17="YES",M17="RAN OFF ROAD"),"2005",""))))))) ->  | CL17: =IF(BD17="","",IF(AND(BD17=2006,BF17="NO",M17="PEDESTRIAN"),"2006",IF(AND(BD17=2007,BF17="NO",M17="PEDESTRIAN"),"2007",IF(AND(BD17=2008,BF17="NO",M17="PEDESTRIAN"),"2008",IF(AND(BD17=2009,BF17="NO",M17="PEDESTRIAN"),"2009",IF(AND(BD17=2010,BF17="NO",M17="PEDESTRIAN"),"2010",IF(AND(BD17=2005,BF17="NO",M17="PEDESTRIAN"),"2005",""))))))) ->  | CM17: =IF(BD17="","",IF(AND(BD17=2006,BF17="YES",M17="PEDESTRIAN"),"2006",IF(AND(BD17=2007,BF17="YES",M17="PEDESTRIAN"),"2007",IF(AND(BD17=2008,BF17="YES",M17="PEDESTRIAN"),"2008",IF(AND(BD17=2009,BF17="YES",M17="PEDESTRIAN"),"2009",IF(AND(BD17=2010,BF17="YES",M17="PEDESTRIAN"),"2010",IF(AND(BD17=2005,BF17="YES",M17="PEDESTRIAN"),"2005",""))))))) ->  | CN17: =IF(BD17="","",IF(AND(BF17="NO",CP17="1"),BD17,"")) ->  | CO17: =IF(BD17="","",IF(AND(BF17="YES",CP17="1"),BD17,"")) ->  | CP17: =IF(BD17="","",IF(COUNTIF(BV17:CM17,"=2006")+COUNTIF(BV17:CM17,"=2007")+COUNTIF(BV17:CM17,"=2008")+COUNTIF(BV17:CM17,"=2009")+COUNTIF(BV17:CM17,"=2010")+COUNTIF(BV17:CM17,"=2005")>=1,"","1")) ->  | CT17: =IF($DP$18="",MID(DP17&$DS$18&DS17&$DQ$18&DQ17&$DR$18&DR17&$DT$18&DT17&$DU$18&DU17&$CY$18&CY17&$CZ$18&CZ17&$CX$18&CX17&$DE$18&DE17&$DF$18&DF17&$DG$18&DG17&$DH$18&DH17&$DV$18&DV17,2,150),DP17&$DS$18&DS17&$DQ$18&DQ17&$DR$18&DR17&$DT$18&DT17&$DU$18&DU17&$CY$18&CY17&$CZ$18&CZ17&$CX$18&CX17&$DE$18&DE17&$DF$18&DF17&$DG$18&DG17&$DH$18&DH17&$DV$18&DV17) ->  | CX17: =IF(CX21="","",CX20) ->  | CY17: =IF(CY21="","",CY20) ->  | CZ17: =IF(CZ21="","",CZ20) ->  | DE17: =IF(DE21="","",DE20) ->  | DF17: =IF(DF21="","",DF20) ->  | DG17: =IF(DG21="","",DG20) ->  | DH17: =IF(DH21="","",DH20) ->  | DP17: =IF(DP21="","",DP20) ->  | DV17: =IF(DV21="","",DV20) ->  | DW17: =IF(DW21="","",DW20) ->  | DX17: =IF(DX21="","",DX20) -> 
BJ18: TIME OF DAY | BP18: ROADWAY CONDITION | BV18: CRASH TYPE | DP18: /
A19: =IF(AQ19="","",HYPERLINK(AQ19,"Crash Report")) ->  | BJ19: DAY | BL19: DAWN/DUSK | BN19: DARK | BP19: DRY | BR19: WET | BT19: SNOW / ICE | BV19: REAR END | BX19: LEFT | BZ19: RIGHT | CB19: ANGLE | CD19: HEAD ON | CF19: SS PASS | CH19: FIXED OBJ | CJ19: RAN OFF RD | CL19: PEDESTRIAN | CN19: OTHER | CQ19: =+HYPERLINK(CONCATENATE("https://tscas001.dot.state.oh.us/OhioRVX2/Roadview.asp?nlf_id='",+D19,"'&offset=",+E19),"Roadview") -> Roadview | CR19: =HYPERLINK(CONCATENATE("http://maps.google.com/maps?q=",+BB19,",+",+BC19,"+(Crash+Location)&iwloc=A&hl=en"),"Google Maps") -> Google Maps | CS19: =HYPERLINK(CONCATENATE("http://data.mashedworld.com/dualmaps/map.htm?x=",BC19,"&y=",BB19,"&z=15&gm=0&ve=5&gc=0&bz=1&bd=0&mw=1&sv=1&svb=0&svp=0&svz=0&svm=2&svf=0"),"Mashed Map") -> Mashed Map | CT19: =IF($DP$18="",MID(DP19&$DS$18&DS19&$DQ$18&DQ19&$DR$18&DR19&$DT$18&DT19&$DU$18&DU19&$CY$18&CY19&$CZ$18&CZ19&$CX$18&CX19&$DE$18&DE19&$DF$18&DF19&$DG$18&DG19&$DH$18&DH19&$DV$18&DV19&$DW$18&DW19&$DX$18&DX19,2,150),DP19&$DS$18&DS19&$DQ$18&DQ19&$DR$18&DR19&$DT$18&DT19&$DU$18&DU19&$CY$18&CY19&$CZ$18&CZ19&$CX$18&CX19&$DE$18&DE19&$DF$18&DF19&$DG$18&DG19&$DH$18&DH19&$DV$18&DV19&$DW$18&DW19&$DX$18&DX19) -> 0 | CX19: =IF($CX$18="","",LEFT(J19,2)) ->  | CY19: =IF($CY$18="","",RIGHT(BD19,2)) ->  | CZ19: =IF($CZ$18="","",LEFT(O19,1)) ->  | DA19: =IF(W19="","",LEFT(W19,6)) ->  | DB19: =IF(AK19="","",LEFT(AK19,6)) ->  | DC19: =IF(X19="","",LEFT(X19,6)) ->  | DD19: =IF(AL19="","",LEFT(AL19,6)) ->  | DE19: =IF($DE$18="","",G19) ->  | DF19: =IF($DF$18="","",E19) ->  | DG19: =IF($DG$18="","",H19) ->  | DH19: =IF($DH$18="","",I19/100) ->  | DP19: =IF($DP$18="","",CU19) -> 0 | DQ19: =IF($DQ$18="","",MID(F19,5,2)&"-"&MID(F19,7,2)&"-"&RIGHT(BD19,2)) ->  | DR19: =IF($DR$18="","",K19) ->  | DS19: =IF($DS$18="","",B19) ->  | DT19: =IF($DT$18="","",IF(L19="DARK - LIGHTED","N",IF(L19="DARK - NO LIGHTS","N",IF(L19="DAYLIGHT","D","O")))) ->  | DU19: =IF($DU$18="","",IF(Q19="ROAD - WET","W",IF(Q19="ROAD - SNOW","S",IF(Q19="ROAD - ICE","I",IF(Q19="ROAD - DRY","D","O"))))) ->  | DV19: =IF($DV$18="","",LEFT(AW19,6)) ->  | DW19: =IF($DW$18="","",IF(W19="","U",VLOOKUP(W19,'Help File'!$AJ$5:$AK$13,2,FALSE))&" to "&IF(X19="","U",VLOOKUP(X19,'Help File'!$AJ$5:$AK$13,2,FALSE))) ->  | DX19: =IF($DX$18="","",IF(AK19="","U",VLOOKUP(AK19,'Help File'!$AJ$5:$AK$13,2,FALSE))&" to "&IF(AL19="","U",VLOOKUP(AL19,'Help File'!$AJ$5:$AK$13,2,FALSE))) -> 
A20: HYPERLINK | B20: ACCIDENTS_POINTS_NBR | C20: LOCAL_REPORT_NBR | D20: NLF_ID | E20: LOGPOINT_SLM_NBR | F20: CRASH_DT | G20: STREET1 | H20: STREET2_REFERENCE | I20: DISTANCE_OFFSET | J20: DAY_OF_WEEK_TXT | K20: HOUR_OF_DAY | L20: LIGHT_CONDITION_TXT | M20: TYPE_OF_CRASH_TXT | N20: NUMBER_OF_VEHICLES | O20: CRASH_SEVERITY_TXT | P20: WEATHER_CONDITION_TXT | Q20: ROAD_CONDITION_TXT | R20: LOCATION_TXT | S20: CONTRIBUTING_FACTOR1_TXT | T20: ACTION1_TXT | U20: OBJECT_STRUCK1_TXT | V20: VEHICLE_TYPE1_TXT | W20: DIRECTION_FROM1_TXT | X20: DIRECTION_TO1_TXT | Y20: DRIVER_AGE1 | Z20: DRIVER_GENDER1_TXT | AA20: TRAFFIC_CONTROL1_TXT | AB20: DRIVER_ALCOHOL1_TXT | AC20: DRIVER_DRUGS1_TXT | AD20: ESTIMATED_SPEED1_TXT | AE20: POSTED_SPEED1_TXT | AF20: CONTRIBUTING_FACTOR2_TXT | AG20: ACTION2_TXT | AH20: VEHICLE_TYPE2_TXT | AI20: DRIVER_AGE2 | AJ20: DRIVER_GENDER2_TXT | AK20: DIRECTION_FROM2_TXT | AL20: DIRECTION_TO2_TXT | AM20: DRIVER_ALCOHOL2_TXT | AN20: DRIVER_DRUGS2_TXT | AO20: SPECIAL_AREA_TXT | AP20: ANIMAL_TYPE_TXT | AQ20: FILENAME_NME | AR20: ROAD_CONTOUR_TXT | AS20: INJ_TYPE1_FATAL | AT20: INJ_TYPE2_SERIOUS_VISIBLE | AU20: INJ_TYPE3_MINOR_VISIBLE | AV20: INJ_TYPE4_NO_VISIBLE | AW20: DIRECTION_FROM_REF_TXT | AX20: DISTRICT_NBR | AY20: COUNTY_CD | AZ20: CITY_VILLAGE_TWP_CD | BA20: CITY_VILLAGE_TWP_NME | BB20: LATITUDE_NBR | BC20: LONGITUDE_NBR | BD20: TRAFFIC_CRASH_YEAR | BE20: CRASH_MONTH_NBR | BF20: INJ/FAT | BG20: SNOW/ICE | BH20: DAWN/DUSK | BI20: DARK | BJ20: PDO | BK20: I/F | BL20: PDO | BM20: I/F | BN20: PDO | BO20: I/F | BP20: PDO | BQ20: I/F | BR20: PDO | BS20: I/F | BT20: PDO | BU20: I/F | BV20: PDO | BW20: I/F | BX20: PDO | BY20: I/F | BZ20: PDO | CA20: I/F | CB20: PDO | CC20: I/F | CD20: PDO | CE20: I/F | CF20: PDO | CG20: I/F | CH20: PDO | CI20: I/F | CJ20: PDO | CK20: I/F | CL20: PDO | CM20: I/F | CN20: PDO | CO20: I/F | CP20: OTHER CRASH TYPE | CQ20: Roadview | CR20: Google | CS20: Mashed Map | CT20: Label | CU20: ID | CV20: TYPE | CW20: Zone | CX20: Day | CY20: Year | CZ20: Severity | DA20: DFrom1 | DB20: DFrom2 | DC20: DTo1 | DD20: DTo2 | DE20: StreetOn | DF20: LogPoint | DG20: StreetAt | DH20: Offset | DI20: Box | DJ20: Symbol | DP20: RowID | DQ20: Date | DR20: Hour | DS20: DocNum | DT20: Light Cond | DU20: Road Cond | DV20: OffsetDirection | DW20: Direction1FromTo | DX20: Direction2FromTo
A21: =IF(AQ21="","",HYPERLINK(AQ21,"Crash Report")) -> Crash Report | B21: 096310772 | C21: 71-0461-71 | D21: SROSSR00159**C | E21: 2.7 | F21: 20090410 | G21: SR0159R | H21: MP002.70 | I21: 0 | J21: FRIDAY | K21: 12 | L21: DAYLIGHT | M21: REAR END | N21: 2 | O21: PROPERTY DAMAGE CRASH | P21: NO ADVERSE WEATHER CONDITION | Q21: ROAD - WET | R21: INTERSECTION RELATED | S21: FOLLOWING TOO CLOSE | T21: GOING STRAIGHT | U21: OBJECT NOT STATED | V21: COMPACT | W21: NORTH | X21: SOUTH | Y21: 76 | Z21: MALE | AA21: PAVEMENT MARKINGS | AB21: NO ALCOHOL DETECTED | AC21: NO DRUGS DETECTED | AD21: SPEED 36-45 | AE21: POSTED 40 | AF21: NO DRIVER ERRORS | AG21: STOPPED IN TRAFFIC | AH21: OTHER VEHICLE | AI21: 36 | AJ21: MALE | AK21: NORTH | AL21: SOUTH | AM21: NO ALCOHOL DETECTED | AN21: NO DRUGS DETECTED | AO21: SPECIAL AREA - NOT STATED | AP21: ANIMAL NOT STATED | AQ21: \\ITCFS014\ODPS\2009\GENERATED_images\20096310772.pdf | AR21: STRAIGHT - LEVEL | AS21: 0 | AT21: 0 | AU21: 0 | AV21: 0 | AX21: 9 | AY21: ROS | AZ21: 3 | BA21: SCIOTO | BB21: 39.373366 | BC21: -82.975695 | BD21: 2009 | BE21: 4 | CQ21: =+HYPERLINK(CONCATENATE("https://tscas001.dot.state.oh.us/OhioRVX2/Roadview.asp?nlf_id='",+D21,"'&offset=",+E21),"Roadview") -> Roadview | CR21: =HYPERLINK(CONCATENATE("http://maps.google.com/maps?q=",+BB21,",+",+BC21,"+(Crash+Location)&iwloc=A&hl=en"),"Google Maps") -> Google Maps | CS21: =HYPERLINK(CONCATENATE("http://data.mashedworld.com/dualmaps/map.htm?x=",BC21,"&y=",BB21,"&z=15&gm=0&ve=5&gc=0&bz=1&bd=0&mw=1&sv=1&svb=0&svp=0&svz=0&svm=2&svf=0"),"Mashed Map") -> Mashed Map
A22: Crash Report | B22: 106422255 | C22: 71-0129-71 | D22: SROSSR00159**C | E22: 2.7 | F22: 20100119 | G22: SR0159R | H22: MP002.70 | I22: 0 | J22: TUESDAY | K22: 15 | L22: DAYLIGHT | M22: SIDESWIPE - PASSING | N22: 2 | O22: PROPERTY DAMAGE CRASH | P22: NO ADVERSE WEATHER CONDITION | Q22: ROAD - DRY | R22: NON-INTERSECTION | S22: IMPROPER LANE CHANGE | T22: CHANGING LANES | U22: OBJECT NOT STATED | V22: PICKUP TRUCK | W22: NORTH | X22: SOUTH | Y22: 49 | Z22: MALE | AA22: PAVEMENT MARKINGS | AB22: NO ALCOHOL DETECTED | AC22: NO DRUGS DETECTED | AD22: SPEED 36-45 | AE22: POSTED 50 | AF22: NO DRIVER ERRORS | AG22: GOING STRAIGHT | AH22: MID-SIZE | AI22: 45 | AJ22: MALE | AK22: NORTH | AL22: SOUTH | AM22: NO ALCOHOL DETECTED | AN22: NO DRUGS DETECTED | AO22: SPECIAL AREA - NOT STATED | AP22: ANIMAL NOT STATED | AQ22: \\ITCFS014\ODPS\2010\GENERATED_images\20106422255.pdf | AR22: STRAIGHT - LEVEL | AS22: 0 | AT22: 0 | AU22: 0 | AV22: 0 | AX22: 9 | AY22: ROS | AZ22: 3 | BA22: SPRINGFIELD | BB22: 39.373366 | BC22: -82.975695 | BD22: 2010 | BE22: 1 | CQ22: Roadview | CR22: Google Maps | CS22: Mashed Map
A23: Crash Report | B23: 106464857 | C23: 71-0925-71 | D23: SROSSR00159**C | E23: 2.7 | F23: 20100814 | G23: SR0159R | H23: MP002.70 | I23: 0 | J23: SATURDAY | K23: 08 | L23: DAYLIGHT | M23: REAR END | N23: 3 | O23: INJURY CRASH | P23: NO ADVERSE WEATHER CONDITION | Q23: ROAD - DRY | R23: INTERSECTION | S23: FOLLOWING TOO CLOSE | T23: GOING STRAIGHT | U23: OBJECT NOT STATED | V23: OTHER VEHICLE | W23: SOUTH | X23: NORTH | Y23: 49 | Z23: FEMALE | AA23: PAVEMENT MARKINGS | AB23: NO ALCOHOL DETECTED | AC23: NO DRUGS DETECTED | AD23: SPEED 36-45 | AE23: POSTED 45 | AF23: NO DRIVER ERRORS | AG23: STOPPED IN TRAFFIC | AH23: MID-SIZE | AI23: 71 | AJ23: FEMALE | AK23: SOUTH | AL23: NORTH | AM23: NO ALCOHOL DETECTED | AN23: NO DRUGS DETECTED | AO23: SPECIAL AREA - NOT STATED | AP23: ANIMAL NOT STATED | AQ23: \\ITCFS014\ODPS\2010\GENERATED_images\20106464857.pdf | AR23: STRAIGHT - LEVEL | AS23: 0 | AT23: 0 | AU23: 3 | AV23: 0 | AX23: 9 | AY23: ROS | AZ23: 3 | BA23: SPRINGFIELD | BB23: 39.373366 | BC23: -82.975695 | BD23: 2010 | BE23: 8 | CQ23: Roadview | CR23: Google Maps | CS23: Mashed Map
A24: Crash Report | B24: 106468792 | C24: 71-1122-71 | D24: SROSSR00159**C | E24: 2.7 | F24: 20100917 | G24: SR0159R | H24: MP002.70 | I24: 0 | J24: FRIDAY | K24: 14 | L24: DAYLIGHT | M24: REAR END | N24: 2 | O24: PROPERTY DAMAGE CRASH | P24: NO ADVERSE WEATHER CONDITION | Q24: ROAD - DRY | R24: NON-INTERSECTION | S24: FOLLOWING TOO CLOSE | T24: GOING STRAIGHT | U24: OBJECT NOT STATED | V24: COMPACT | W24: NORTH | X24: SOUTH | Y24: 24 | Z24: FEMALE | AA24: PAVEMENT MARKINGS | AB24: NO ALCOHOL DETECTED | AC24: NO DRUGS DETECTED | AD24: SPEED 26-35 | AE24: POSTED 55 | AF24: NO DRIVER ERRORS | AG24: GOING STRAIGHT | AH24: MID-SIZE | AI24: 45 | AJ24: FEMALE | AK24: NORTH | AL24: SOUTH | AM24: NO ALCOHOL DETECTED | AN24: NO DRUGS DETECTED | AO24: SPECIAL AREA - NOT STATED | AP24: ANIMAL NOT STATED | AQ24: \\ITCFS014\ODPS\2010\GENERATED_images\20106468792.pdf | AR24: STRAIGHT - LEVEL | AS24: 0 | AT24: 0 | AU24: 0 | AV24: 0 | AX24: 9 | AY24: ROS | AZ24: 3 | BA24: SPRINGFIELD | BB24: 39.373366 | BC24: -82.975695 | BD24: 2010 | BE24: 9 | CQ24: Roadview | CR24: Google Maps | CS24: Mashed Map
A25: Crash Report | B25: 098012855 | C25: 09-1047 | D25: SROSSR00159**C | E25: 2.72 | F25: 20090122 | G25: SR0159R | H25: 001852 | I25: 1 | J25: THURSDAY | K25: 19 | L25: DARK - LIGHTED | M25: REAR END | N25: 2 | O25: PROPERTY DAMAGE CRASH | P25: NO ADVERSE WEATHER CONDITION | Q25: ROAD - DRY | R25: INTERSECTION | S25: FOLLOWING TOO CLOSE | T25: GOING STRAIGHT | U25: NOTHING STRUCK | V25: FULL-SIZE | W25: NORTH | X25: SOUTH | Y25: 41 | Z25: MALE | AA25: TRAFFIC SIGNAL | AB25: NO ALCOHOL DETECTED | AC25: NO DRUGS DETECTED | AD25: SPEED 20 AND UNDER | AE25: POSTED 45 | AF25: NO DRIVER ERRORS | AG25: STOPPED IN TRAFFIC | AH25: FULL-SIZE | AI25: 28 | AJ25: FEMALE | AK25: NORTH | AL25: SOUTH | AM25: NO ALCOHOL DETECTED | AN25: NO DRUGS DETECTED | AO25: SPECIAL AREA - NOT STATED | AP25: ANIMAL NOT STATED | AQ25: \\ITCFS014\ODPS\2009\8012344-8012933\200980128557174129.TIF | AR25: STRAIGHT - LEVEL | AS25: 0 | AT25: 0 | AU25: 0 | AV25: 0 | AX25: 9 | AY25: ROS | AZ25: 3 | BA25: SPRINGFIELD | BB25: 39.373652 | BC25: -82.975682 | BD25: 2009 | BE25: 1 | CQ25: Roadview | CR25: Google Maps | CS25: Mashed Map

Sheet Data Analysis
A1: ='Crash Data'!A3 -> - - (-) From // to // | K1: =A1 -> - - (-) From // to //
K3: SEVERITY | L3: CRASH_SEVERITY
B4: Number | K4: TRAFFIC_CRASH_YEAR | L4: (blank)
A5: Total | K5: (blank) | L5: 0
K6: Grand Total | L6: 0
A9: CRASH_SEVERITY | B9: Number | C9: CRASH_SEVERITY | D9: % | F9: TRAFFIC_CRASH_YEAR | G9: Number | H9: TRAFFIC_CRASH_YEAR | I9: %
A10: (blank) | C10: (blank) | F10: (blank) | H10: (blank)
A11: Grand Total | C11: Grand Total | F11: Grand Total | H11: Grand Total
A17: DAY_OF_WEEK | B17: Number | C17: DAY_OF_WEEK | D17: %
A18: (blank) | C18: (blank)
A19: Grand Total | C19: Grand Total
K22: TRAFFIC_CRASH_YEAR | L22: Fatalities | M22: Incapacitating Injuries
K23: (blank) | L23: 0 | M23: 0
K24: Grand Total | L24: 0 | M24: 0
A29: HOUR_OF_DAY | B29: Number | C29: HOUR_OF_DAY | D29: % | F29: TYPE_OF_CRASH | G29: Number | H29: TYPE_OF_CRASH | I29: %
F30: (blank) | H30: (blank)
A31: Grand Total | C31: Grand Total | F31: Grand Total | H31: Grand Total
K40: TRAFFIC_CRASH_YEAR | L40: INJ_TYPE2_SERIOUS_VISIBLE | M40: INJ_TYPE3_MINOR_VISIBLE | N40: INJ_TYPE4_NO_VISIBLE
K41: (blank) | L41: 0 | M41: 0 | N41: 0
K42: Grand Total | L42: 0 | M42: 0 | N42: 0
A58: WEATHER_CONDITION | B58: Number | C58: WEATHER_CONDITION | D58: % | F58: ROAD_CONDITION | G58: Number | H58: ROAD_CONDITION | I58: % | K58: TYPE_OF_CRASH | L58: CRASH_SEVERITY | M58: Number
A59: (blank) | C59: (blank) | F59: (blank) | H59: (blank) | K59: (blank) | L59: (blank) | M59: 0
A60: Grand Total | C60: Grand Total | F60: Grand Total | H60: Grand Total | K60: (blank) Total | M60: 0
K61: Grand Total | M61: 0
A71: LIGHT_CONDITION | B71: Number | C71: LIGHT_CONDITION | D71: % | F71: NUMBER_OF_VEHICLES | G71: Number | H71: NUMBER_OF_VEHICLES | I71: %
A72: (blank) | C72: (blank) | F72: (blank) | H72: (blank)
A73: Grand Total | C73: Grand Total | F73: Grand Total | H73: Grand Total
A85: LOCATION | B85: Number | C85: LOCATION | D85: % | F85: CRASH_MONTH_NBR | G85: Number | H85: CRASH_MONTH_NBR | I85: %
A86: (blank) | C86: (blank) | F86: (blank) | H86: (blank)
A87: Grand Total | C87: Grand Total | F87: Grand Total | H87: Grand Total
A102: ROAD_CONTOUR | B102: Number | C102: ROAD_CONTOUR | D102: %
A103: (blank) | C103: (blank)
A104: Grand Total | C104: Grand Total
A113: SPECIAL_AREA | B113: Number | C113: SPECIAL_AREA | D113: % | F113: ANIMAL_TYPE | G113: Number | H113: ANIMAL_TYPE | I113: %
A114: (blank) | C114: (blank) | F114: (blank) | H114: (blank)
A115: Grand Total | C115: Grand Total | F115: Grand Total | H115: Grand Total
A122: ACTION1 | B122: Number | C122: ACTION1 | D122: % | F122: CONTRIBUTING_FACTOR1 | G122: Number | H122: CONTRIBUTING_FACTOR1 | I122: %
A123: (blank) | C123: (blank) | F123: (blank) | H123: (blank)
A124: Grand Total | C124: Grand Total | F124: Grand Total | H124: Grand Total
A150: OBJECT_STRUCK1 | B150: Number | C150: OBJECT_STRUCK1 | D150: % | F150: TRAFFIC_CONTROL1 | G150: Number | H150: TRAFFIC_CONTROL1 | I150: %
A151: (blank) | C151: (blank) | F151: (blank) | H151: (blank)
A152: Grand Total | C152: Grand Total | F152: Grand Total | H152: Grand Total
A171: DRIVER_ALCOHOL1 | B171: Number | C171: DRIVER_ALCOHOL1 | D171: % | F171: DRIVER_DRUGS1 | G171: Number | H171: DRIVER_DRUGS1 | I171: %
A172: (blank) | C172: (blank) | F172: (blank) | H172: (blank)
A173: Grand Total | C173: Grand Total | F173: Grand Total | H173: Grand Total
A182: DIRECTION_FROM1 | B182: Number | C182: DIRECTION_FROM1 | D182: % | F182: DIRECTION_TO1 | G182: Number | H182: DIRECTION_TO1 | I182: % | K182: TYPE_OF_CRASH | L182: CRASH_SEVERITY | M182: TRAFFIC_CRASH_YEAR | N182: Number
A183: (blank) | C183: (blank) | F183: (blank) | H183: (blank) | K183: (blank) | L183: (blank) | M183: (blank) | N183: 2
A184: Grand Total | C184: Grand Total | F184: Grand Total | H184: Grand Total | K184: (blank) Total | N184: 2
K186: Grand Total | N186: 2
A197: POSTED_SPEED1 | B197: Number | C197: POSTED_SPEED1 | D197: % | F197: ESTIMATED_SPEED1 | G197: Number | H197: ESTIMATED_SPEED1 | I197: %
A198: (blank) | C198: (blank) | F198: (blank) | H198: (blank)
A199: Grand Total | C199: Grand Total | F199: Grand Total | H199: Grand Total
A214: VEHICLE_TYPE1 | B214: Number | C214: VEHICLE_TYPE1 | D214: % | F214: VEHICLE_TYPE2 | G214: Number | H214: VEHICLE_TYPE2 | I214: %
A215: (blank) | C215: (blank) | F215: (blank) | H215: (blank)
A216: Grand Total | C216: Grand Total | F216: Grand Total | H216: Grand Total
A249: ACTION2 | B249: Number | C249: ACTION2 | D249: % | F249: CONTRIBUTING_FACTOR2 | G249: Number | H249: CONTRIBUTING_FACTOR2 | I249: %
A250: (blank) | C250: (blank) | F250: (blank) | H250: (blank)
A251: Grand Total | C251: Grand Total | F251: Grand Total | H251: Grand Total
A277: DIRECTION_FROM2 | B277: Number | C277: DIRECTION_FROM2 | D277: % | F277: DIRECTION_TO2 | G277: Number | H277: DIRECTION_TO2 | I277: %
A278: (blank) | C278: (blank) | F278: (blank) | H278: (blank)
A279: Grand Total | C279: Grand Total | F279: Grand Total | H279: Grand Total
A293: DRIVER_ALCOHOL2 | B293: Number | C293: DRIVER_ALCOHOL2 | D293: % | F293: DRIVER_DRUGS2 | G293: Number | H293: DRIVER_DRUGS2 | I293: %
A294: (blank) | C294: (blank) | F294: (blank) | H294: (blank)
A295: Grand Total | C295: Grand Total | F295: Grand Total | H295: Grand Total

Sheet Graphical Analysis
A1: ='Crash Data'!A3 -> - - (-) From // to // | M1: =A1 -> - - (-) From // to // | Y1: =A1 -> - - (-) From // to //

Sheet Histograms
A1: Default Bin Size is 0.1 Miles | D1: ='Crash Data'!$A$3 -> - - (-) From // to // | AG1: Click for Histogram 1 Graph | AJ1: Click for Histogram 2 Graph | AO1: Click for Histogram 3 Graph | BH1: Click for Histogram 4 Graph | BP1: Click for Histogram 5 Graph | BZ1: Click for Histogram 6 Graph | CF1: Click for Histogram 7 Graph | DG1: Click for Histogram 8 Graph | DZ1: Click for Histogram 9 Graph | EJ1: Click for Histogram 10 Graph | FK1: Click for Histogram 11 Graph
A2: Click Buttons Below to Modify | D2: Histogram 1 | AG2: Count of ACCIDENTS_POINTS_NBR | AJ2: Count of ACCIDENTS_POINTS_NBR | AK2: CRASH_SEVERITY_TXT | AO2: Count of ACCIDENTS_POINTS_NBR | AP2: TYPE_OF_CRASH_TXT | BH2: Count of ACCIDENTS_POINTS_NBR | BI2: ROAD_CONDITION_TXT | BP2: Count of ACCIDENTS_POINTS_NBR | BQ2: LIGHT_CONDITION_TXT | BZ2: Count of ACCIDENTS_POINTS_NBR | CA2: ANIMAL_TYPE_TXT | CF2: Count of ACCIDENTS_POINTS_NBR | CG2: CONTRIBUTING_FACTOR1_TXT | DG2: Count of ACCIDENTS_POINTS_NBR | DH2: ACTION1_TXT | DZ2: Count of ACCIDENTS_POINTS_NBR | EA2: DAY_OF_WEEK_TXT | EJ2: Count of ACCIDENTS_POINTS_NBR | EK2: HOUR_OF_DAY | FK2: Count of ACCIDENTS_POINTS_NBR | FM2: TYPE_OF_CRASH_TXT
AG3: LOGPOINT_SLM_NBR | AH3: Total | AJ3: LOGPOINT_SLM_NBR | AK3: (blank) | AO3: LOGPOINT_SLM_NBR | AP3: (blank) | BH3: LOGPOINT_SLM_NBR | BI3: (blank) | BP3: LOGPOINT_SLM_NBR | BQ3: (blank) | BZ3: LOGPOINT_SLM_NBR | CA3: (blank) | CF3: LOGPOINT_SLM_NBR | CG3: (blank) | DG3: LOGPOINT_SLM_NBR | DH3: (blank) | DZ3: LOGPOINT_SLM_NBR | EA3: (blank) | EJ3: LOGPOINT_SLM_NBR | FK3: LOGPOINT_SLM_NBR | FL3: DIRECTION_TO1_TXT | FM3: (blank)
AG4: 99.77-99.87 | AH4: 1 | AJ4: 99.77-99.87 | AK4: 1 | AO4: 99.77-99.87 | AP4: 1 | BH4: 99.77-99.87 | BI4: 1 | BP4: 99.77-99.87 | BQ4: 1 | BZ4: 99.77-99.87 | CA4: 1 | CF4: 99.77-99.87 | CG4: 1 | DG4: 99.77-99.87 | DH4: 1 | DZ4: 99.77-99.87 | EA4: 1 | EJ4: 99.77-99.87 | EK4: 1 | FK4: 99.77-99.87 | FL4: (blank) | FM4: 1
AG5: 99.87-99.97 | AH5: 1 | AJ5: 99.87-99.97 | AK5: 1 | AO5: 99.87-99.97 | AP5: 1 | BH5: 99.87-99.97 | BI5: 1 | BP5: 99.87-99.97 | BQ5: 1 | BZ5: 99.87-99.97 | CA5: 1 | CF5: 99.87-99.97 | CG5: 1 | DG5: 99.87-99.97 | DH5: 1 | DZ5: 99.87-99.97 | EA5: 1 | EJ5: 99.87-99.97 | EK5: 1 | FK5: 99.77-99.87 Total | FM5: 1
AG6: Grand Total | AH6: 2 | AJ6: Grand Total | AK6: 2 | AO6: Grand Total | AP6: 2 | BH6: Grand Total | BI6: 2 | BP6: Grand Total | BQ6: 2 | BZ6: Grand Total | CA6: 2 | CF6: Grand Total | CG6: 2 | DG6: Grand Total | DH6: 2 | DZ6: Grand Total | EA6: 2 | EJ6: Grand Total | EK6: 2 | FK6: 99.87-99.97 | FL6: (blank) | FM6: 1
AA7: Copy and paste this call-out box for use on the chart | FK7: 99.87-99.97 Total | FM7: 1
FK8: Grand Total | FM8: 2
A25: Click to go to Histogram 1 data
A26: Click to go to Histogram 2 data
A27: Click to go to Histogram 3 data
A28: Click to go to Histogram 4 data
A29: Click to go to Histogram 5 data
A30: Click to go to Histogram 6 data
A31: Click to go to Histogram 7 data
A32: Click to go to Histogram 8 data
A33: Click to go to Histogram 9 data
A34: Click to go to Histogram 10 data
A35: Click to go to Histogram 11 data
A36: Click to go to Histogram 12 data
D58: =$D$1 -> - - (-) From // to //
D59: Histogram 2
AA66: Copy and paste this call-out box for use on the chart
A82: Click to go to Histogram 1 data
A83: Click to go to Histogram 2 data
A84: Click to go to Histogram 3 data
A85: Click to go to Histogram 4 data
A86: Click to go to Histogram 5 data
A87: Click to go to Histogram 6 data
A88: Click to go to Histogram 7 data
A89: Click to go to Histogram 8 data
A90: Click to go to Histogram 9 data
A91: Click to go to Histogram 10 data
A92: Click to go to Histogram 11 data
A93: Click to go to Histogram 12 data
D115: =$D$1 -> - - (-) From // to //
D116: Histogram 3
AA122: Copy and paste this call-out box for use on the chart
A139: Click to go to Histogram 1 data
A140: Click to go to Histogram 2 data
A141: Click to go to Histogram 3 data
A142: Click to go to Histogram 4 data
A143: Click to go to Histogram 5 data
A144: Click to go to Histogram 6 data
A145: Click to go to Histogram 7 data
A146: Click to go to Histogram 8 data
A147: Click to go to Histogram 9 data
A148: Click to go to Histogram 10 data
A149: Click to go to Histogram 11 data
A150: Click to go to Histogram 12 data
D172: =$D$1 -> - - (-) From // to //
D173: Histogram 4
AA177: Copy and paste this call-out box for use on the chart
A196: Click to go to Histogram 1 data
A197: Click to go to Histogram 2 data
A198: Click to go to Histogram 3 data
A199: Click to go to Histogram 4 data
A200: Click to go to Histogram 5 data
A201: Click to go to Histogram 6 data
A202: Click to go to Histogram 7 data
A203: Click to go to Histogram 8 data
A204: Click to go to Histogram 9 data
A205: Click to go to Histogram 10 data
A206: Click to go to Histogram 11 data
A207: Click to go to Histogram 12 data
D229: =$D$1 -> - - (-) From // to //
D230: Histogram 5
AA234: Copy and paste this call-out box for use on the chart
A253: Click to go to Histogram 1 data
A254: Click to go to Histogram 2 data
A255: Click to go to Histogram 3 data
A256: Click to go to Histogram 4 data
A257: Click to go to Histogram 5 data
A258: Click to go to Histogram 6 data
A259: Click to go to Histogram 7 data
A260: Click to go to Histogram 8 data
A261: Click to go to Histogram 9 data
A262: Click to go to Histogram 10 data
A263: Click to go to Histogram 11 data
A264: Click to go to Histogram 12 data
D286: =$D$1 -> - - (-) From // to //
D287: Histogram 6
AA294: Copy and paste this call-out box for use on the chart
A310: Click to go to Histogram 1 data
A311: Click to go to Histogram 2 data
A312: Click to go to Histogram 3 data
A313: Click to go to Histogram 4 data
A314: Click to go to Histogram 5 data
A315: Click to go to Histogram 6 data
A316: Click to go to Histogram 7 data
A317: Click to go to Histogram 8 data
A318: Click to go to Histogram 9 data
A319: Click to go to Histogram 10 data
A320: Click to go to Histogram 11 data
A321: Click to go to Histogram 12 data
D343: =$D$1 -> - - (-) From // to //
D344: Histogram 7
AA350: Copy and paste this call-out box for use on the chart
A367: Click to go to Histogram 1 data
A368: Click to go to Histogram 2 data
A369: Click to go to Histogram 3 data
A370: Click to go to Histogram 4 data
A371: Click to go to Histogram 5 data
A372: Click to go to Histogram 6 data
A373: Click to go to Histogram 7 data
A374: Click to go to Histogram 8 data
A375: Click to go to Histogram 9 data
A376: Click to go to Histogram 10 data
A377: Click to go to Histogram 11 data
A378: Click to go to Histogram 12 data
D400: =$D$1 -> - - (-) From // to //
D401: Histogram 8
AA414: Copy and paste this call-out box for use on the chart
A424: Click to go to Histogram 1 data
A425: Click to go to Histogram 2 data
A426: Click to go to Histogram 3 data
A427: Click to go to Histogram 4 data
A428: Click to go to Histogram 5 data
A429: Click to go to Histogram 6 data
A430: Click to go to Histogram 7 data
A431: Click to go to Histogram 8 data
A432: Click to go to Histogram 9 data
A433: Click to go to Histogram 10 data
A434: Click to go to Histogram 11 data
A435: Click to go to Histogram 12 data
D457: =$D$1 -> - - (-) From // to //
D458: Histogram 9
AA467: Copy and paste this call-out box for use on the chart
A482: Click to go to Histogram 1 data
A483: Click to go to Histogram 2 data
A484: Click to go to Histogram 3 data
A485: Click to go to Histogram 4 data
A486: Click to go to Histogram 5 data
A487: Click to go to Histogram 6 data
A488: Click to go to Histogram 7 data
A489: Click to go to Histogram 8 data
A490: Click to go to Histogram 9 data
A491: Click to go to Histogram 10 data
A492: Click to go to Histogram 11 data
A493: Click to go to Histogram 12 data
D514: =$D$1 -> - - (-) From // to //
D515: Histogram 10
AA522: Copy and paste this call-out box for use on the chart
A538: Click to go to Histogram 1 data
A539: Click to go to Histogram 2 data
A540: Click to go to Histogram 3 data
A541: Click to go to Histogram 4 data
A542: Click to go to Histogram 5 data
A543: Click to go to Histogram 6 data
A544: Click to go to Histogram 7 data
A545: Click to go to Histogram 8 data
A546: Click to go to Histogram 9 data
A547: Click to go to Histogram 10 data
A548: Click to go to Histogram 11 data
A549: Click to go to Histogram 12 data
D571: =$D$1 -> - - (-) From // to //
D572: Histogram 11
AA579: Copy and paste this call-out box for use on the chart
A596: Click to go to Histogram 1 data
A597: Click to go to Histogram 2 data
A598: Click to go to Histogram 3 data
A599: Click to go to Histogram 4 data
A600: Click to go to Histogram 5 data
A601: Click to go to Histogram 6 data
A602: Click to go to Histogram 7 data
A603: Click to go to Histogram 8 data
A604: Click to go to Histogram 9 data
A605: Click to go to Histogram 10 data
A606: Click to go to Histogram 11 data
A607: Click to go to Histogram 12 data
D628: =$D$1 -> - - (-) From // to //
D629: Histogram 12
AA634: Copy and paste this call-out box for use on the chart
A652: Click to go to Histogram 1 data
A653: Click to go to Histogram 2 data
A654: Click to go to Histogram 3 data
A655: Click to go to Histogram 4 data
A656: Click to go to Histogram 5 data
A657: Click to go to Histogram 6 data
A658: Click to go to Histogram 7 data
A659: Click to go to Histogram 8 data
A660: Click to go to Histogram 9 data
A661: Click to go to Histogram 10 data
A662: Click to go to Histogram 11 data
A663: Click to go to Histogram 12 data
A689: Click for Histogram 12 Graph
A690: Count of ACCIDENTS_POINTS_NBR | B690: DIRECTION_TO1_TXT
A691: LOGPOINT_SLM_NBR | B691: (blank)
A692: 99.77-99.87 | B692: 1
A693: 99.87-99.97 | B693: 1
A694: Grand Total | B694: 2

Sheet Collision Diagram
AP1: =LEFT(AO1,1) ->  | AQ1: =RIGHT(AO1,1) -> 
AP2: =LEFT(AO2,1) ->  | AQ2: =RIGHT(AO2,1) -> 
AP3: =LEFT(AO3,2) ->  | AQ3: =RIGHT(AO3,2) -> 
AP4: =LEFT(AO4,2) ->  | AQ4: =RIGHT(AO4,2) -> 
AP6: =LEFT(AO6,1) ->  | AQ6: =RIGHT(AO6,2) -> 

Sheet Diagram Data
A1: =IF('Crash Data'!$CU19="","",'Crash Data'!$CU19) ->  | B1: =IF('Crash Data'!$O19="","",IF('Crash Data'!$O19="PROPERTY DAMAGE CRASH","PDO",'Crash Data'!$O19)) ->  | C1: =IF('Crash Data'!$M19="","",'Crash Data'!$M19) ->  | D1: =IF('Crash Data'!$F19="","",'Crash Data'!$F19) ->  | E1: =IF('Crash Data'!$K19="","",'Crash Data'!$K19) ->  | F1: =IF('Crash Data'!$J19="","",'Crash Data'!$J19) ->  | G1: =IF('Crash Data'!$L19="","",'Crash Data'!$L19) ->  | H1: =IF('Crash Data'!$Q19="","",'Crash Data'!$Q19) ->  | I1: =IF('Crash Data'!$R19="","",'Crash Data'!$R19) ->  | J1: =IF('Crash Data'!$S19="","",'Crash Data'!$S19) ->  | K1: =IF('Crash Data'!$T19="","",'Crash Data'!$T19) ->  | L1: =IF('Crash Data'!$W19="","",'Crash Data'!$W19) ->  | M1: =IF('Crash Data'!$X19="","",'Crash Data'!$X19) ->  | N1: =IF('Crash Data'!$U19="","",IF('Crash Data'!$U19="NOTHING STRUCK","",'Crash Data'!$U19)) ->  | O1: =IF('Crash Data'!$AB19="","",IF('Crash Data'!$AB19="NO ALCOHOL DETECTED","",'Crash Data'!$AB19)) ->  | P1: =IF('Crash Data'!$AF19="","",IF('Crash Data'!$AF19="NO DRIVER ERRORS","",'Crash Data'!$AF19)) ->  | Q1: =IF('Crash Data'!$AG19="","",'Crash Data'!$AG19) ->  | R1: =IF('Crash Data'!$AK19="","",'Crash Data'!$AK19) ->  | S1: =IF('Crash Data'!$AL19="","",'Crash Data'!$AL19) ->  | T1: =IF('Crash Data'!$AM19="","",IF('Crash Data'!$AM19="NO ALCOHOL DETECTED","",'Crash Data'!$AM19)) ->  | U1: =IF('Crash Data'!$AR19="","",'Crash Data'!$AR19) ->  | V1: =IF('Crash Data'!$AS19="","",'Crash Data'!$AS19) ->  | W1: =IF('Crash Data'!$AT19="","",'Crash Data'!$AT19) ->  | X1: =IF('Crash Data'!$AU19="","",'Crash Data'!$AU19) ->  | Y1: =IF('Crash Data'!$AV19="","",'Crash Data'!$AV19) ->  | Z1: =IF('Crash Data'!$B19="","",'Crash Data'!$B19) ->  | AA1: =IF('Crash Data'!$C19="","",'Crash Data'!$C19) ->  | AB1: =IF('Crash Data'!$D19="","",'Crash Data'!$D19) ->  | AC1: =IF('Crash Data'!$E19="","",'Crash Data'!$E19) ->  | AD1: =IF('Crash Data'!$G19="","",'Crash Data'!$G19) ->  | AE1: =IF('Crash Data'!$H19="","",'Crash Data'!$H19) ->  | AF1: =IF('Crash Data'!$I19="","",'Crash Data'!$I19) ->  | AG1: =IF('Crash Data'!$AW19="","",'Crash Data'!$AW19) ->  | AH1: =IF('Crash Data'!$N19="","",'Crash Data'!$N19) ->  | AI1: =IF('Crash Data'!$P19="","",'Crash Data'!$P19) ->  | AJ1: =IF('Crash Data'!$V19="","",'Crash Data'!$V19) ->  | AK1: =IF('Crash Data'!$Y19="","",'Crash Data'!$Y19) ->  | AL1: =IF('Crash Data'!$Z19="","",'Crash Data'!$Z19) ->  | AM1: =IF('Crash Data'!$AA19="","",'Crash Data'!$AA19) ->  | AN1: =IF('Crash Data'!$AC19="","",IF('Crash Data'!$AC19="NO DRUGS DETECTED","",'Crash Data'!$AC19)) ->  | AO1: =IF('Crash Data'!$AD19="","",'Crash Data'!$AD19) ->  | AP1: =IF('Crash Data'!$AE19="","",'Crash Data'!$AE19) ->  | AQ1: =IF('Crash Data'!$AH19="","",'Crash Data'!$AH19) ->  | AR1: =IF('Crash Data'!$AI19="","",'Crash Data'!$AI19) ->  | AS1: =IF('Crash Data'!$AJ19="","",'Crash Data'!$AJ19) ->  | AT1: =IF('Crash Data'!$AN19="","",IF('Crash Data'!$AN19="NO DRUGS DETECTED","",'Crash Data'!$AN19)) ->  | AU1: =IF('Crash Data'!$AO19="","",IF('Crash Data'!$AO19="SPECIAL AREA - NOT STATED","",'Crash Data'!$AO19)) ->  | AV1: =IF('Crash Data'!$BD19="","",'Crash Data'!$BD19) ->  | AW1: =IF('Crash Data'!$BE19="","",'Crash Data'!$BE19) -> 
A2: ROW ID | B2: CRASH SEVERITY | C2: TYPE OF CRASH | D2: CRASH DT | E2: HOUR | F2: DAY | G2: LIGHT CONDITION | H2: ROAD CONDITION | I2: LOCATION | J2: CONTRIBUTING FACTOR1 | K2: ACTION1 | L2: DIRECTION FROM1 | M2: DIRECTION TO1 | N2: OBJECT STRUCK1 | O2: DRIVER ALCOHOL1 | P2: CONTRIBUTING FACTOR2 | Q2: ACTION2 | R2: DIRECTION FROM2 | S2: DIRECTION TO2 | T2: DRIVER ALCOHOL2 | U2: ROAD CONTOUR | V2: FATAL | W2: SERIOUS INJ | X2: MINOR INJ | Y2: NO VISIBLE INJ | Z2: ACCIDENT NBR | AA2: LOCAL REPORT NBR | AB2: NLFID | AC2: LOGPOINT | AD2: STREET1 | AE2: STREET2 REFERENCE | AF2: DISTANCE OFFSET | AG2: DIRECTION FROM REF | AH2: NUMBER OF VEHICLES | AI2: WEATHER CONDITION | AJ2: VEHICLE TYPE1 | AK2: DRIVER AGE1 | AL2: DRIVER GENDER1 | AM2: TRAFFIC CONTROL1 | AN2: DRIVER DRUGS1 | AO2: ESTIMATED SPEED1 | AP2: POSTED SPEED1 | AQ2: VEHICLE TYPE2 | AR2: DRIVER AGE2 | AS2: DRIVER GENDER2 | AT2: DRIVER DRUGS2 | AU2: SPECIAL AREA | AV2: YEAR | AW2: MONTH

Sheet Resurfacing Analysis
C1: ='Crash Data'!A3 -> - - (-) From // to // | CB1: State System Resurfacing Crash Analysis - Rural | CH1: =IF(D4="ODOT Let Project","ODOT Central Office","ODOT District Office") -> ODOT District Office
C2: Section NLFID | CB2: ADT Range | CC2: Data Values
C3: Section System - State or Local | CC3: A | CD3: B | CE3: C | CF3: D
C4: Project Let Type - ODOT or Local | BZ4: StateRural | CA4: 400 | CB4: 400 - 1,000 | CC4: 4 | CD4: 4 | CE4: 4 | CF4: 2.5
C5: Section Begin Log | D5: =IF('Crash Data'!$D$15="","None",'Crash Data'!$D$15+0) -> None | E5: Update and Run Analysis | BZ5: StateRural | CA5: 1001 | CB5: 1,001 - 2,000 | CC5: 4 | CD5: 4 | CE5: 4 | CF5: 2
C6: Section End Log | D6: =IF('Crash Data'!$D$16="","None",'Crash Data'!$D$16+0) -> None | BZ6: StateRural | CA6: 2001 | CB6: 2,001 - 3,000 | CC6: 4 | CD6: 4 | CE6: 4 | CF6: 1.75
C7: Bin Lenth (Miles) | D7: 0.5 | E7: Default = 0.5 Miles | BZ7: StateRural | CA7: 3001 | CB7: 3,001 - 6,000 | CC7: 4 | CD7: 4 | CE7: 4 | CF7: 1.5
Z8: TYPE_OF_CRASH_TXT | AA8: (All) | BZ8: StateRural | CA8: 6000.01 | CB8: > 6,000 | CC8: 5 | CD8: 4 | CE8: 4 | CF8: 1
A9: Must Enter Data for Fields in Yellow! | W9: TYPE_OF_CRASH_TXT | X9: (All) | Z9: Excludes Animal Crashes | CB9: State System Resurfacing Crash Analysis - Urban
W10: Excludes Animal Crashes | Z10: Count | AA10: LOCATION_TXT2 | AB10: LOCATION_TXT | CB10: ADT Range | CC10: Data Values
K11: Threshold Values | W11: Count | AJ11: Count | AK11: Crash Type | CC11: W | CD11: X | CE11: Y | CF11: Z
A12: Section Comments | B12: Exception Indicator | C12: Section | D12: Section Type (Rural/Urban) | E12: ADT | F12: Non-Intersection Crashes (w/o Animal) | G12: Intersection Related Crashes (w/o Animal) | H12: Total Crashes (w/o Animal) | I12: Crash Rate "R" - MVMT (w/o Animal) | K12: =IF(D13="","",IF(D13="Rural","A","W")) ->  | L12: =IF(D13="","",IF(D13="Rural","B","X")) ->  | M12: =IF(D13="","",IF(D13="Rural","C","Y")) ->  | N12: =IF(D13="","",IF(D13="Rural","D","Z")) ->  | P12: =IF(D13="","",IF(D13="Rural","A & B Check","W & X Check")) ->  | Q12: =IF(D13="","",IF(D13="Rural","C Check","Y Check")) ->  | R12: =IF(D13="","",IF(D13="Rural","D Check","Z Check")) ->  | W12: LOGPOINT_SLM_NBR | X12: Total | Z12: LOGPOINT_SLM_NBR | AJ12: LOGPOINT_SLM_NBR | BZ12: StateUrban | CA12: 400 | CB12: 400 - 6,000 | CC12: 4 | CD12: 4 | CE12: 4 | CF12: 3.5
B13: =IF(AND(P13="No",Q13="No"),"",IF(P13="Yes","Send Crash Summary to "&$CH$1,IF(AND(P13="No",Q13="Yes",R13="Yes"),"Send Crash Summary to "&$CH$1,""))) ->  | C13: =IF(W13="","",VLOOKUP(W13,$W$13:$X$500,1,FALSE)) -> 99.77-100.27 | F13: =IF(C13="","",H13-G13) -> 2 | G13: =IF(C13="","",IF($AA$11="IntersectionRelated",VLOOKUP(W13,$Z$13:$AF$500,2,FALSE),"0")) -> 0 | H13: =IF(W13="","",VLOOKUP(W13,$W$13:$X$500,2,FALSE)) -> 2 | I13: =IF(C13="","",IF(C13="Total","",1000000*((H13))/(365*3*$D$7*E13))) ->  | K13: =IF($C13="","",IF($E13<400,"",IF($D$3&$D13="StateRural",VLOOKUP($E13,$CA$4:$CF$8,3,TRUE),IF($D$3&$D13="StateUrban",VLOOKUP($E13,$CA$12:$CF$16,3,TRUE),IF($D$3&$D13="LocalRural",VLOOKUP($E13,$CA$20:$CF$22,3,TRUE),IF($D$3&$D13="LocalUrban",VLOOKUP($E13,$CA$26:$CF$30,3,TRUE))))))) ->  | L13: =IF($C13="","",IF($E13<400,"",IF($D$3&$D13="StateRural",VLOOKUP($E13,$CA$4:$CF$8,4,TRUE),IF($D$3&$D13="StateUrban",VLOOKUP($E13,$CA$12:$CF$16,4,TRUE),IF($D$3&$D13="LocalRural",VLOOKUP($E13,$CA$20:$CF$22,4,TRUE),IF($D$3&$D13="LocalUrban",VLOOKUP($E13,$CA$26:$CF$30,4,TRUE))))))) ->  | M13: =IF($C13="","",IF($E13<400,"",IF($D$3&$D13="StateRural",VLOOKUP($E13,$CA$4:$CF$8,5,TRUE),IF($D$3&$D13="StateUrban",VLOOKUP($E13,$CA$12:$CF$16,5,TRUE),IF($D$3&$D13="LocalRural",VLOOKUP($E13,$CA$20:$CF$22,5,TRUE),IF($D$3&$D13="LocalUrban",VLOOKUP($E13,$CA$26:$CF$30,5,TRUE))))))) ->  | N13: =IF($C13="","",IF($E13<400,"",IF($D$3&$D13="StateRural",VLOOKUP($E13,$CA$4:$CF$8,6,TRUE),IF($D$3&$D13="StateUrban",VLOOKUP($E13,$CA$12:$CF$16,6,TRUE),IF($D$3&$D13="LocalRural",VLOOKUP($E13,$CA$20:$CF$22,6,TRUE),IF($D$3&$D13="LocalUrban",VLOOKUP($E13,$CA$26:$CF$30,6,TRUE))))))) ->  | P13: =IF(K13="","",IF(AND(F13>K13,G13>L13),"Yes","No")) ->  | Q13: =IF(M13="","",IF(H13>M13,"Yes","No")) ->  | R13: =IF(N13="","",IF(I13>N13,"Yes","No")) ->  | W13: 99.77-100.27 | X13: 2 | Z13: Total | AJ13: Total | BZ13: StateUrban | CA13: 6001 | CB13: 6,001 - 10,000 | CC13: 6 | CD13: 7 | CE13: 4 | CF13: 3.5
C14: =IF(W14="","",VLOOKUP(W14,$W$13:$X$500,1,FALSE)) -> Total | F14: 2 | G14: 0 | H14: 2 | P14: =IF(K14="","",IF(AND(F14>K14,G14>L14),"Yes","No")) ->  | Q14: =IF(M14="","",IF(H14>M14,"Yes","No")) ->  | R14: =IF(N14="","",IF(I14>N14,"Yes","No")) ->  | W14: Total | X14: 2 | BZ14: StateUrban | CA14: 10001 | CB14: 10,001 - 15,000 | CC14: 11 | CD14: 14 | CE14: 4 | CF14: 4.25
BZ15: StateUrban | CA15: 15001 | CB15: 15,001 - 30,000 | CC15: 19 | CD15: 22 | CE15: 4 | CF15: 4.25
BZ16: StateUrban | CA16: 30000.01 | CB16: > 30,000 | CC16: 35 | CD16: 9 | CE16: 4 | CF16: 1.25
CB17: Local Roads Resurfacing Crash Analysis - Rural
CB18: ADT Range | CC18: Data Values
CC19: A | CD19: B | CE19: C | CF19: D
BZ20: LocalRural | CA20: 400 | CB20: 400 - 1,000 | CC20: 4 | CD20: 4 | CE20: 4 | CF20: 5.5
BZ21: LocalRural | CA21: 1001 | CB21: 1,001 - 1,500 | CC21: 4 | CD21: 4 | CE21: 4 | CF21: 3.25
BZ22: LocalRural | CA22: 1500.01 | CB22: > 1,500 | CC22: 4 | CD22: 4 | CE22: 4 | CF22: 2
CB23: Local Roads Resurfacing Crash Analysis - Urban
CB24: ADT Range | CC24: Data Values
CC25: W | CD25: X | CE25: Y | CF25: Z
BZ26: LocalUrban | CA26: 400 | CB26: 400 - 2,500 | CC26: 4 | CD26: 4 | CE26: 4 | CF26: 6.75
BZ27: LocalUrban | CA27: 2501 | CB27: 2,501 - 5,000 | CC27: 4 | CD27: 4 | CE27: 4 | CF27: 4.25
BZ28: LocalUrban | CA28: 5001 | CB28: 5,001 - 7,500 | CC28: 5 | CD28: 5 | CE28: 4 | CF28: 4.25
BZ29: LocalUrban | CA29: 7501 | CB29: 7,501 - 10,000 | CC29: 7 | CD29: 7 | CE29: 4 | CF29: 3.75
BZ30: LocalUrban | CA30: 10000.01 | CB30: > 10,000 | CC30: 13 | CD30: 12 | CE30: 4 | CF30: 4
B77: =IF(AND(P77="No",Q77="No"),"",IF(P77="Yes","Send Crash Summary to "&$CH$1,IF(AND(P77="No",Q77="Yes",R77="Yes"),"Send Crash Summary to "&$CH$1,""))) ->  | F77: =IF(C77="","",H77-G77) ->  | G77: =IF(C77="","",IF($AA$11="IntersectionRelated",VLOOKUP(W77,$Z$13:$AF$500,2,FALSE),"0")) ->  | H77: =IF(W77="","",VLOOKUP(W77,$W$13:$X$500,2,FALSE)) ->  | I77: =IF(C77="","",IF(C77="Total","",1000000*((H77))/(365*3*$D$7*E77))) ->  | K77: =IF($C77="","",IF($E77<400,"",IF($D$3&$D77="StateRural",VLOOKUP($E77,$CA$4:$CF$8,3,TRUE),IF($D$3&$D77="StateUrban",VLOOKUP($E77,$CA$12:$CF$16,3,TRUE),IF($D$3&$D77="LocalRural",VLOOKUP($E77,$CA$20:$CF$22,3,TRUE),IF($D$3&$D77="LocalUrban",VLOOKUP($E77,$CA$26:$CF$30,3,TRUE))))))) ->  | L77: =IF($C77="","",IF($E77<400,"",IF($D$3&$D77="StateRural",VLOOKUP($E77,$CA$4:$CF$8,4,TRUE),IF($D$3&$D77="StateUrban",VLOOKUP($E77,$CA$12:$CF$16,4,TRUE),IF($D$3&$D77="LocalRural",VLOOKUP($E77,$CA$20:$CF$22,4,TRUE),IF($D$3&$D77="LocalUrban",VLOOKUP($E77,$CA$26:$CF$30,4,TRUE))))))) ->  | M77: =IF($C77="","",IF($E77<400,"",IF($D$3&$D77="StateRural",VLOOKUP($E77,$CA$4:$CF$8,5,TRUE),IF($D$3&$D77="StateUrban",VLOOKUP($E77,$CA$12:$CF$16,5,TRUE),IF($D$3&$D77="LocalRural",VLOOKUP($E77,$CA$20:$CF$22,5,TRUE),IF($D$3&$D77="LocalUrban",VLOOKUP($E77,$CA$26:$CF$30,5,TRUE))))))) ->  | N77: =IF($C77="","",IF($E77<400,"",IF($D$3&$D77="StateRural",VLOOKUP($E77,$CA$4:$CF$8,6,TRUE),IF($D$3&$D77="StateUrban",VLOOKUP($E77,$CA$12:$CF$16,6,TRUE),IF($D$3&$D77="LocalRural",VLOOKUP($E77,$CA$20:$CF$22,6,TRUE),IF($D$3&$D77="LocalUrban",VLOOKUP($E77,$CA$26:$CF$30,6,TRUE))))))) -> 
C78: =IF(W78="","",VLOOKUP(W78,$W$13:$X$500,1,FALSE)) ->  | P78: =IF(K78="","",IF(AND(F78>K78,G78>L78),"Yes","No")) ->  | Q78: =IF(M78="","",IF(H78>M78,"Yes","No")) ->  | R78: =IF(N78="","",IF(I78>N78,"Yes","No")) -> 
B141: =IF(AND(P141="No",Q141="No"),"",IF(P141="Yes","Send Crash Summary to "&$CH$1,IF(AND(P141="No",Q141="Yes",R141="Yes"),"Send Crash Summary to "&$CH$1,""))) ->  | F141: =IF(C141="","",H141-G141) ->  | G141: =IF(C141="","",IF($AA$11="IntersectionRelated",VLOOKUP(W141,$Z$13:$AF$500,2,FALSE),"0")) ->  | H141: =IF(W141="","",VLOOKUP(W141,$W$13:$X$500,2,FALSE)) ->  | I141: =IF(C141="","",IF(C141="Total","",1000000*((H141))/(365*3*$D$7*E141))) ->  | K141: =IF($C141="","",IF($E141<400,"",IF($D$3&$D141="StateRural",VLOOKUP($E141,$CA$4:$CF$8,3,TRUE),IF($D$3&$D141="StateUrban",VLOOKUP($E141,$CA$12:$CF$16,3,TRUE),IF($D$3&$D141="LocalRural",VLOOKUP($E141,$CA$20:$CF$22,3,TRUE),IF($D$3&$D141="LocalUrban",VLOOKUP($E141,$CA$26:$CF$30,3,TRUE))))))) ->  | L141: =IF($C141="","",IF($E141<400,"",IF($D$3&$D141="StateRural",VLOOKUP($E141,$CA$4:$CF$8,4,TRUE),IF($D$3&$D141="StateUrban",VLOOKUP($E141,$CA$12:$CF$16,4,TRUE),IF($D$3&$D141="LocalRural",VLOOKUP($E141,$CA$20:$CF$22,4,TRUE),IF($D$3&$D141="LocalUrban",VLOOKUP($E141,$CA$26:$CF$30,4,TRUE))))))) ->  | M141: =IF($C141="","",IF($E141<400,"",IF($D$3&$D141="StateRural",VLOOKUP($E141,$CA$4:$CF$8,5,TRUE),IF($D$3&$D141="StateUrban",VLOOKUP($E141,$CA$12:$CF$16,5,TRUE),IF($D$3&$D141="LocalRural",VLOOKUP($E141,$CA$20:$CF$22,5,TRUE),IF($D$3&$D141="LocalUrban",VLOOKUP($E141,$CA$26:$CF$30,5,TRUE))))))) ->  | N141: =IF($C141="","",IF($E141<400,"",IF($D$3&$D141="StateRural",VLOOKUP($E141,$CA$4:$CF$8,6,TRUE),IF($D$3&$D141="StateUrban",VLOOKUP($E141,$CA$12:$CF$16,6,TRUE),IF($D$3&$D141="LocalRural",VLOOKUP($E141,$CA$20:$CF$22,6,TRUE),IF($D$3&$D141="LocalUrban",VLOOKUP($E141,$CA$26:$CF$30,6,TRUE))))))) -> 
C142: =IF(W142="","",VLOOKUP(W142,$W$13:$X$500,1,FALSE)) ->  | P142: =IF(K142="","",IF(AND(F142>K142,G142>L142),"Yes","No")) ->  | Q142: =IF(M142="","",IF(H142>M142,"Yes","No")) ->  | R142: =IF(N142="","",IF(I142>N142,"Yes","No")) -> 
B205: =IF(AND(P205="No",Q205="No"),"",IF(P205="Yes","Send Crash Summary to "&$CH$1,IF(AND(P205="No",Q205="Yes",R205="Yes"),"Send Crash Summary to "&$CH$1,""))) ->  | F205: =IF(C205="","",H205-G205) ->  | G205: =IF(C205="","",IF($AA$11="IntersectionRelated",VLOOKUP(W205,$Z$13:$AF$500,2,FALSE),"0")) ->  | H205: =IF(W205="","",VLOOKUP(W205,$W$13:$X$500,2,FALSE)) ->  | I205: =IF(C205="","",IF(C205="Total","",1000000*((H205))/(365*3*$D$7*E205))) ->  | K205: =IF($C205="","",IF($E205<400,"",IF($D$3&$D205="StateRural",VLOOKUP($E205,$CA$4:$CF$8,3,TRUE),IF($D$3&$D205="StateUrban",VLOOKUP($E205,$CA$12:$CF$16,3,TRUE),IF($D$3&$D205="LocalRural",VLOOKUP($E205,$CA$20:$CF$22,3,TRUE),IF($D$3&$D205="LocalUrban",VLOOKUP($E205,$CA$26:$CF$30,3,TRUE))))))) ->  | L205: =IF($C205="","",IF($E205<400,"",IF($D$3&$D205="StateRural",VLOOKUP($E205,$CA$4:$CF$8,4,TRUE),IF($D$3&$D205="StateUrban",VLOOKUP($E205,$CA$12:$CF$16,4,TRUE),IF($D$3&$D205="LocalRural",VLOOKUP($E205,$CA$20:$CF$22,4,TRUE),IF($D$3&$D205="LocalUrban",VLOOKUP($E205,$CA$26:$CF$30,4,TRUE))))))) ->  | M205: =IF($C205="","",IF($E205<400,"",IF($D$3&$D205="StateRural",VLOOKUP($E205,$CA$4:$CF$8,5,TRUE),IF($D$3&$D205="StateUrban",VLOOKUP($E205,$CA$12:$CF$16,5,TRUE),IF($D$3&$D205="LocalRural",VLOOKUP($E205,$CA$20:$CF$22,5,TRUE),IF($D$3&$D205="LocalUrban",VLOOKUP($E205,$CA$26:$CF$30,5,TRUE))))))) ->  | N205: =IF($C205="","",IF($E205<400,"",IF($D$3&$D205="StateRural",VLOOKUP($E205,$CA$4:$CF$8,6,TRUE),IF($D$3&$D205="StateUrban",VLOOKUP($E205,$CA$12:$CF$16,6,TRUE),IF($D$3&$D205="LocalRural",VLOOKUP($E205,$CA$20:$CF$22,6,TRUE),IF($D$3&$D205="LocalUrban",VLOOKUP($E205,$CA$26:$CF$30,6,TRUE))))))) -> 
C206: =IF(W206="","",VLOOKUP(W206,$W$13:$X$500,1,FALSE)) ->  | P206: =IF(K206="","",IF(AND(F206>K206,G206>L206),"Yes","No")) ->  | Q206: =IF(M206="","",IF(H206>M206,"Yes","No")) ->  | R206: =IF(N206="","",IF(I206>N206,"Yes","No")) -> 

Sheet Rate Calc Sheet
B4: County: | C4: ='Crash Data'!D12 -> 0 | P4: Entering Leg 1 | T4: Entering Leg 1 | U4: 3400 | X4: Entering Leg 1
B5: R1: | C5: ='Crash Data'!G21 -> SR0159R | P5: Entering Leg 2 | T5: Entering Leg 2 | U5: 5600 | X5: Entering Leg 2
B6: R1 Log: | C6: ='Crash Data'!D15 -> 0 | P6: Entering Leg 3 | T6: Entering Leg 3 | U6: 6250 | X6: Entering Leg 3
B7: R2: | C7: ='Crash Data'!H21 -> MP002.70 | T7: Entering Leg 4 | U7: 2300 | X7: Entering Leg 4
B8: Crash Year Data: | C8: =LEFT('Crash Data'!D17,4)&"-"&LEFT('Crash Data'!D18,4) -> - | P8: Entering Vehicles | Q8: =SUM(Q4:R6) -> 0 | X8: Entering Leg 5
T9: Entering Vehicles | U9: =SUM(U4:V7) -> 17550
X10: Entering Vehicles | Y10: =SUM(Y4:Z8) -> 0
A12: Enter Number of Crashes for Intersection: | F12: =GETPIVOTDATA("DAY_OF_WEEK",'Data Analysis'!$A$4) -> 0
A13: Enter Number of Years for Crash Data: | F13: 3
A14: Enter Number of Intersection Entering Vehicles:
A15: Number of Days in Year: | F15: 365
A17: Crash Rate per Million Entering Vehicles (MEV): | F17: =(F12*1000000)/(F14*F13*F15) -> 
B23: County: | C23: ='Crash Data'!D12 -> 0
B24: Route: | C24: ='Crash Data'!G21 -> SR0159R
B25: BLog: | C25: ='Crash Data'!D15 -> 0
B26: ELog: | C26: ='Crash Data'!D16 -> 0
B27: Crash Year Data: | C27: =LEFT('Crash Data'!D17,4)&"-"&LEFT('Crash Data'!D18,4) -> -
A31: Enter Number of Crashes on Section: | F31: =GETPIVOTDATA("DAY_OF_WEEK",'Data Analysis'!$A$4) -> 0
A32: Enter Number of Years for Crash Data: | F32: 3
A33: Enter Average Daily Traffic on Section (ADT):
A34: Enter Length of Section in Miles | F34: =C26-C25 -> 0
A35: Number of Days in Year: | F35: 365
A37: Crash Rate per Million Vehicle Miles Traveled (MVMT): | F37: =(F31*1000000)/(F33*F35*F32*F34) -> 

Sheet Severity Calc Sheet
A1: Select Location Type: | C1: Rural Non-Freeway
B3: RSI Value = | C3: =IFERROR(C25/(A25+B25),0) -> 28801.02478
D4: 2010 Relative Severity Index
A5: User Override | B5: Auto Fill | C5: Crash Type Severity Calc | D5: Crash Type # | E5: Crash Type | F5: Rural Non-Freeway | G5: Urban Non-Freeway | H5: Freeway
B6: =IF(A$6:A$24="",COUNTIF('Crash Data'!M$21:M$65000,"Not Stated*"),"") -> 0 | C6: =IF(C$1=F$5,IF(A6="",B6*F6,A6*F6),IF(C$1=G$5,IF(A6="",B6*G6,A6*G6),IF(C$1=H$5,IF(A6="",B6*H6,A6*H6)))) -> 0 | D6: 0 | E6: Not stated | F6: 22495.49615 | G6: 35099.91473 | H6: 19558.71359
B7: =IF(A$6:A$24="",COUNTIF('Crash Data'!M$21:M$65000,"Head On*"),"") -> 0 | C7: 0 | D7: 1 | E7: Head on | F7: 139612.7353 | G7: 56730.28179 | H7: 224462.7647
B8: =IF(A$6:A$24="",COUNTIF('Crash Data'!M$21:M$65000,"Rear End*"),"") -> 4 | C8: 114417.2634 | D8: 2 | E8: Rear end | F8: 28604.31585 | G8: 25525.24077 | H8: 28134.79372
B9: =IF(A$6:A$24="",COUNTIF('Crash Data'!M$21:M$65000,"Backing*"),"") -> 0 | C9: 0 | D9: 3 | E9: Backing | F9: 26274.98912 | G9: 21673.69551 | H9: 21202.43574
B10: =IF(A$6:A$24="",COUNTIF('Crash Data'!M$21:M$65000,"Sideswipe - meeting*"),"") -> 0 | C10: 0 | D10: 4 | E10: Sideswipe - meeting | F10: 64558.80667 | G10: 35570.73068 | H10: 122237.3972
B11: =IF(A$6:A$24="",COUNTIF('Crash Data'!M$21:M$65000,"Sideswipe - passing*"),"") -> 1 | C11: 29587.86051 | D11: 5 | E11: Sideswipe - passing | F11: 29587.86051 | G11: 24436.10261 | H11: 28476.15907
B12: =IF(A$6:A$24="",COUNTIF('Crash Data'!M$21:M$65000,"Angle*")+COUNTIF('Crash Data'!M$21:M$65000,"Right*"),"") -> 0 | C12: 0 | D12: 6 | E12: Angle | F12: 50714.09707 | G12: 28670.9426 | H12: 29939.59086
B13: =IF(A$6:A$24="",COUNTIF('Crash Data'!M$21:M$65000,"Parked vehicle*"),"") -> 0 | C13: 0 | D13: 7 | E13: Parked Vehicle | F13: 23668.88163 | G13: 22377.47145 | H13: 39780.07744
B14: =IF(A$6:A$24="",COUNTIF('Crash Data'!M$21:M$65000,"Pedestrian*"),"") -> 0 | C14: 0 | D14: 8 | E14: Pedestrian | F14: 147075.4553 | G14: 67613.5183 | H14: 217965.1781 | J14: DO NOT MODIFY CELLS IN THIS COLUMN
B15: =IF(A$6:A$24="",COUNTIF('Crash Data'!M$21:M$65000,"Animal*"),"") -> 0 | C15: 0 | D15: 9 | E15: Animal | F15: 16981.48086 | G15: 27306.54839 | H15: 16185.21889
B16: =IF(A$6:A$24="",COUNTIF('Crash Data'!M$21:M$65000,"Train*"),"") -> 0 | C16: 0 | D16: 10 | E16: Train | F16: 149166.3333 | G16: 46514.2449 | H16: 0 | J16: Rural Non-Freeway
B17: =IF(A$6:A$24="",COUNTIF('Crash Data'!M$21:M$65000,"Pedalcycles*"),"") -> 0 | C17: 0 | D17: 11 | E17: Pedalcycles | F17: 67709.01761 | G17: 41399.1483 | H17: 28890.33333 | J17: Urban Non-Freeway
B18: =IF(A$6:A$24="",COUNTIF('Crash Data'!M$21:M$65000,"Other non-vehicle*"),"") -> 0 | C18: 0 | D18: 12 | E18: Other non-vehicle | F18: 37299 | G18: 32696 | H18: 0 | J18: Freeway
B19: =IF(A$6:A$24="",COUNTIF('Crash Data'!M$21:M$65000,"Fixed object*")+COUNTIF('Crash Data'!M$21:M$65000,"Ran*"),"") -> 0 | C19: 0 | D19: 13 | E19: Fixed object | F19: 31070.35217 | G19: 26392.44575 | H19: 22936.2817
B20: =IF(A$6:A$24="",COUNTIF('Crash Data'!M$21:M$65000,"Other object*"),"") -> 0 | C20: 0 | D20: 14 | E20: Other object | F20: 19878.01906 | G20: 17353.56684 | H20: 16568.74745
B21: =IF(A$6:A$24="",COUNTIF('Crash Data'!M$21:M$65000,"Falling from or in vehicle*"),"") -> 0 | C21: 0 | D21: 15 | E21: Falling from or in vehicle | F21: 0 | G21: 0 | H21: 0
B22: =IF(A$6:A$24="",COUNTIF('Crash Data'!M$21:M$65000,"Overturning*"),"") -> 0 | C22: 0 | D22: 16 | E22: Overturning | F22: 60792.53371 | G22: 50151.64488 | H22: 49417.11438
B23: =IF(A$6:A$24="",COUNTIF('Crash Data'!M$21:M$65000,"Other non-collision*"),"") -> 0 | C23: 0 | D23: 17 | E23: Other non-collision | F23: 19721.83834 | G23: 23835.44846 | H23: 28496.19186
B24: =IF(A$6:A$24="",COUNTIF('Crash Data'!M$21:M$65000,"Left*"),"") -> 0 | C24: =IF(C$1=F$5,IF(A24="",B24*F24,A24*F24),IF(C$1=G$5,IF(A24="",B24*G24,A24*G24),IF(C$1=H$5,IF(A24="",B24*H24,A24*H24)))) -> 0 | D24: 18 | E24: Left Turn | F24: 44906.15153 | G24: 34244.55899 | H24: 40148.93808
A25: =SUM(A6:A24) -> 0 | B25: =SUM(B6:B24) -> 5 | C25: =SUM(C6:C24) -> 144005.1239
C29: Select Appropriate "Location Type" and Modify the "User Override" Cells in Yellow if Necessary | J29: TYPE_OF_CRASH_TXT
J30: LEFT TURN
J31: RIGHT TURN
J32: RAN OFF ROAD
J33: SIDESWIPE - MEETING
J34: HEAD ON
J35: OTHER NON-VEHICLE
J36: SIDESWIPE - PASSING
J37: OVERTURNING
J38: PARKED VEHICLE
J39: FIXED OBJECT
J40: NOT STATED
J41: BACKING
J42: PEDALCYCLES
J43: ANGLE
J44: PEDESTRIAN
J45: TRAIN
J46: ANIMAL
J47: OTHER OBJECT
J48: REAR END
J49: OTHER NON-COLLISION

Sheet ROR Analysis
N1: RATE OF RETURN - ECONOMIC ANALYSIS WORKSHEET
A2: Cells in Yellow Require User Input | AB2: Ohio Department of Transportation
AB3: Office of Systems Planning and Program Management | BW3: ESTIMATES OF COUNTERMEASURE EFFECTIVENESS REDUCTION (R) FACTORS
A4: County | C4: ='Crash Data'!D12 -> 0 | G4: Main Roadway | K4: ='Crash Data'!D13 -> 0 | Q4: Begin SLM | S4: ='Crash Data'!D15 -> 0 | V4: End SLM | X4: ='Crash Data'!D16 -> 0 | BW4: (September 1997, Revised July 2007)
G5: Intersecting Roadway | BV5: Number | BW5: Description
A6: Prepared by | C6: JH | G6: Date | H6: =NOW() -> 2012-01-09T14:14:29.130 | Q6: Crash BDate | S6: ='Crash Data'!D17 -> 0 | V6: Crash EDate | X6: ='Crash Data'!D18 -> 0
BV7: 1 | BW7: 1 Upgrade pavement markings - general
A8: Year | B8: TIME OF DAY | H8: ROADWAY CONDITION | N8: CRASH TYPE | BV8: 2 | BW8: 2 Install raised pavement markers, locations & sections
B9: DAY | D9: DAWN/DUSK | F9: DARK | H9: DRY | J9: WET | L9: SNOW / ICE | N9: REAR END | P9: LEFT | R9: RIGHT | T9: ANGLE | V9: HEAD ON | X9: SS PASS | Z9: FIXED OBJ | AB9: RAN OFF RD | AD9: PEDESTRIAN | AF9: OTHER | AH9: TOTAL | BV9: 3 | BW9: 3 Install plastic pavement markings
B10: PDO | C10: I/F | D10: PDO | E10: I/F | F10: PDO | G10: I/F | H10: PDO | I10: I/F | J10: PDO | K10: I/F | L10: PDO | M10: I/F | N10: PDO | O10: I/F | P10: PDO | Q10: I/F | R10: PDO | S10: I/F | T10: PDO | U10: I/F | V10: PDO | W10: I/F | X10: PDO | Y10: I/F | Z10: PDO | AA10: I/F | AB10: PDO | AC10: I/F | AD10: PDO | AE10: I/F | AF10: PDO | AG10: I/F | AH10: PDO | AI10: I/F | BV10: 4 | BW10: 4 De-slick pavement - sections [except wet pavement crashes]
A11: 2006 | B11: =COUNTIF('Crash Data'!BJ$21:BJ$65000,"=2006") -> 0 | C11: =COUNTIF('Crash Data'!BK$21:BK$65000,"=2006") -> 0 | D11: =COUNTIF('Crash Data'!BL$21:BL$65000,"=2006") -> 0 | E11: =COUNTIF('Crash Data'!BM$21:BM$65000,"=2006") -> 0 | F11: =COUNTIF('Crash Data'!BN$21:BN$65000,"=2006") -> 0 | G11: =COUNTIF('Crash Data'!BO$21:BO$65000,"=2006") -> 0 | H11: =COUNTIF('Crash Data'!BP$21:BP$65000,"=2006") -> 0 | I11: =COUNTIF('Crash Data'!BQ$21:BQ$65000,"=2006") -> 0 | J11: =COUNTIF('Crash Data'!BR$21:BR$65000,"=2006") -> 0 | K11: =COUNTIF('Crash Data'!BS$21:BS$65000,"=2006") -> 0 | L11: =COUNTIF('Crash Data'!BT$21:BT$65000,"=2006") -> 0 | M11: =COUNTIF('Crash Data'!BU$21:BU$65000,"=2006") -> 0 | N11: =COUNTIF('Crash Data'!BV$21:BV$65000,"=2006") -> 0 | O11: =COUNTIF('Crash Data'!BW$21:BW$65000,"=2006") -> 0 | P11: =COUNTIF('Crash Data'!BX$21:BX$65000,"=2006") -> 0 | Q11: =COUNTIF('Crash Data'!BY$21:BY$65000,"=2006") -> 0 | R11: =COUNTIF('Crash Data'!BZ$21:BZ$65000,"=2006") -> 0 | S11: =COUNTIF('Crash Data'!CA$21:CA$65000,"=2006") -> 0 | T11: =COUNTIF('Crash Data'!CB$21:CB$65000,"=2006") -> 0 | U11: =COUNTIF('Crash Data'!CC$21:CC$65000,"=2006") -> 0 | V11: =COUNTIF('Crash Data'!CD$21:CD$65000,"=2006") -> 0 | W11: =COUNTIF('Crash Data'!CE$21:CE$65000,"=2006") -> 0 | X11: =COUNTIF('Crash Data'!CF$21:CF$65000,"=2006") -> 0 | Y11: =COUNTIF('Crash Data'!CG$21:CG$65000,"=2006") -> 0 | Z11: =COUNTIF('Crash Data'!CH$21:CH$65000,"=2006") -> 0 | AA11: =COUNTIF('Crash Data'!CI$21:CI$65000,"=2006") -> 0 | AB11: =COUNTIF('Crash Data'!CJ$21:CJ$65000,"=2006") -> 0 | AC11: =COUNTIF('Crash Data'!CK$21:CK$65000,"=2006") -> 0 | AD11: =COUNTIF('Crash Data'!CL$21:CL$65000,"=2006") -> 0 | AE11: =COUNTIF('Crash Data'!CM$21:CM$65000,"=2006") -> 0 | AF11: =COUNTIF('Crash Data'!CN$21:CN$65000,"=2006") -> 0 | AG11: =COUNTIF('Crash Data'!CO$21:CO$65000,"=2006") -> 0 | AH11: =N11+P11+R11+T11+V11+X11+Z11+AB11+AD11+AF11 -> 0 | AI11: 0 | BV11: 5 | BW11: 5 Resurface - rural sections - 2 lane
A12: 2007 | B12: =COUNTIF('Crash Data'!BJ$21:BJ$65000,"=2007") -> 0 | C12: =COUNTIF('Crash Data'!BK$21:BK$65000,"=2007") -> 0 | D12: =COUNTIF('Crash Data'!BL$21:BL$65000,"=2007") -> 0 | E12: =COUNTIF('Crash Data'!BM$21:BM$65000,"=2007") -> 0 | F12: =COUNTIF('Crash Data'!BN$21:BN$65000,"=2007") -> 0 | G12: =COUNTIF('Crash Data'!BO$21:BO$65000,"=2007") -> 0 | H12: =COUNTIF('Crash Data'!BP$21:BP$65000,"=2007") -> 0 | I12: =COUNTIF('Crash Data'!BQ$21:BQ$65000,"=2007") -> 0 | J12: =COUNTIF('Crash Data'!BR$21:BR$65000,"=2007") -> 0 | K12: =COUNTIF('Crash Data'!BS$21:BS$65000,"=2007") -> 0 | L12: =COUNTIF('Crash Data'!BT$21:BT$65000,"=2007") -> 0 | M12: =COUNTIF('Crash Data'!BU$21:BU$65000,"=2007") -> 0 | N12: =COUNTIF('Crash Data'!BV$21:BV$65000,"=2007") -> 0 | O12: =COUNTIF('Crash Data'!BW$21:BW$65000,"=2007") -> 0 | P12: =COUNTIF('Crash Data'!BX$21:BX$65000,"=2007") -> 0 | Q12: =COUNTIF('Crash Data'!BY$21:BY$65000,"=2007") -> 0 | R12: =COUNTIF('Crash Data'!BZ$21:BZ$65000,"=2007") -> 0 | S12: =COUNTIF('Crash Data'!CA$21:CA$65000,"=2007") -> 0 | T12: =COUNTIF('Crash Data'!CB$21:CB$65000,"=2007") -> 0 | U12: =COUNTIF('Crash Data'!CC$21:CC$65000,"=2007") -> 0 | V12: =COUNTIF('Crash Data'!CD$21:CD$65000,"=2007") -> 0 | W12: =COUNTIF('Crash Data'!CE$21:CE$65000,"=2007") -> 0 | X12: =COUNTIF('Crash Data'!CF$21:CF$65000,"=2007") -> 0 | Y12: =COUNTIF('Crash Data'!CG$21:CG$65000,"=2007") -> 0 | Z12: =COUNTIF('Crash Data'!CH$21:CH$65000,"=2007") -> 0 | AA12: =COUNTIF('Crash Data'!CI$21:CI$65000,"=2007") -> 0 | AB12: =COUNTIF('Crash Data'!CJ$21:CJ$65000,"=2007") -> 0 | AC12: =COUNTIF('Crash Data'!CK$21:CK$65000,"=2007") -> 0 | AD12: =COUNTIF('Crash Data'!CL$21:CL$65000,"=2007") -> 0 | AE12: =COUNTIF('Crash Data'!CM$21:CM$65000,"=2007") -> 0 | AF12: =COUNTIF('Crash Data'!CN$21:CN$65000,"=2007") -> 0 | AG12: =COUNTIF('Crash Data'!CO$21:CO$65000,"=2007") -> 0 | AH12: 0 | AI12: 0 | BV12: 6 | BW12: 5a Resurface - rural sections > 2 lane
A13: 2008 | B13: =COUNTIF('Crash Data'!BJ$21:BJ$65000,"=2008") -> 0 | C13: =COUNTIF('Crash Data'!BK$21:BK$65000,"=2008") -> 0 | D13: =COUNTIF('Crash Data'!BL$21:BL$65000,"=2008") -> 0 | E13: =COUNTIF('Crash Data'!BM$21:BM$65000,"=2008") -> 0 | F13: =COUNTIF('Crash Data'!BN$21:BN$65000,"=2008") -> 0 | G13: =COUNTIF('Crash Data'!BO$21:BO$65000,"=2008") -> 0 | H13: =COUNTIF('Crash Data'!BP$21:BP$65000,"=2008") -> 0 | I13: =COUNTIF('Crash Data'!BQ$21:BQ$65000,"=2008") -> 0 | J13: =COUNTIF('Crash Data'!BR$21:BR$65000,"=2008") -> 0 | K13: =COUNTIF('Crash Data'!BS$21:BS$65000,"=2008") -> 0 | L13: =COUNTIF('Crash Data'!BT$21:BT$65000,"=2008") -> 0 | M13: =COUNTIF('Crash Data'!BU$21:BU$65000,"=2008") -> 0 | N13: =COUNTIF('Crash Data'!BV$21:BV$65000,"=2008") -> 0 | O13: =COUNTIF('Crash Data'!BW$21:BW$65000,"=2008") -> 0 | P13: =COUNTIF('Crash Data'!BX$21:BX$65000,"=2008") -> 0 | Q13: =COUNTIF('Crash Data'!BY$21:BY$65000,"=2008") -> 0 | R13: =COUNTIF('Crash Data'!BZ$21:BZ$65000,"=2008") -> 0 | S13: =COUNTIF('Crash Data'!CA$21:CA$65000,"=2008") -> 0 | T13: =COUNTIF('Crash Data'!CB$21:CB$65000,"=2008") -> 0 | U13: =COUNTIF('Crash Data'!CC$21:CC$65000,"=2008") -> 0 | V13: =COUNTIF('Crash Data'!CD$21:CD$65000,"=2008") -> 0 | W13: =COUNTIF('Crash Data'!CE$21:CE$65000,"=2008") -> 0 | X13: =COUNTIF('Crash Data'!CF$21:CF$65000,"=2008") -> 0 | Y13: =COUNTIF('Crash Data'!CG$21:CG$65000,"=2008") -> 0 | Z13: =COUNTIF('Crash Data'!CH$21:CH$65000,"=2008") -> 0 | AA13: =COUNTIF('Crash Data'!CI$21:CI$65000,"=2008") -> 0 | AB13: =COUNTIF('Crash Data'!CJ$21:CJ$65000,"=2008") -> 0 | AC13: =COUNTIF('Crash Data'!CK$21:CK$65000,"=2008") -> 0 | AD13: =COUNTIF('Crash Data'!CL$21:CL$65000,"=2008") -> 0 | AE13: =COUNTIF('Crash Data'!CM$21:CM$65000,"=2008") -> 0 | AF13: =COUNTIF('Crash Data'!CN$21:CN$65000,"=2008") -> 0 | AG13: =COUNTIF('Crash Data'!CO$21:CO$65000,"=2008") -> 0 | AH13: 0 | AI13: 0 | BV13: 7 | BW13: 56 Resurface - urban section > 2 lane
A14: 2009 | B14: =COUNTIF('Crash Data'!BJ$21:BJ$65000,"=2009") -> 0 | C14: =COUNTIF('Crash Data'!BK$21:BK$65000,"=2009") -> 0 | D14: =COUNTIF('Crash Data'!BL$21:BL$65000,"=2009") -> 0 | E14: =COUNTIF('Crash Data'!BM$21:BM$65000,"=2009") -> 0 | F14: =COUNTIF('Crash Data'!BN$21:BN$65000,"=2009") -> 0 | G14: =COUNTIF('Crash Data'!BO$21:BO$65000,"=2009") -> 0 | H14: =COUNTIF('Crash Data'!BP$21:BP$65000,"=2009") -> 0 | I14: =COUNTIF('Crash Data'!BQ$21:BQ$65000,"=2009") -> 0 | J14: =COUNTIF('Crash Data'!BR$21:BR$65000,"=2009") -> 0 | K14: =COUNTIF('Crash Data'!BS$21:BS$65000,"=2009") -> 0 | L14: =COUNTIF('Crash Data'!BT$21:BT$65000,"=2009") -> 0 | M14: =COUNTIF('Crash Data'!BU$21:BU$65000,"=2009") -> 0 | N14: =COUNTIF('Crash Data'!BV$21:BV$65000,"=2009") -> 0 | O14: =COUNTIF('Crash Data'!BW$21:BW$65000,"=2009") -> 0 | P14: =COUNTIF('Crash Data'!BX$21:BX$65000,"=2009") -> 0 | Q14: =COUNTIF('Crash Data'!BY$21:BY$65000,"=2009") -> 0 | R14: =COUNTIF('Crash Data'!BZ$21:BZ$65000,"=2009") -> 0 | S14: =COUNTIF('Crash Data'!CA$21:CA$65000,"=2009") -> 0 | T14: =COUNTIF('Crash Data'!CB$21:CB$65000,"=2009") -> 0 | U14: =COUNTIF('Crash Data'!CC$21:CC$65000,"=2009") -> 0 | V14: =COUNTIF('Crash Data'!CD$21:CD$65000,"=2009") -> 0 | W14: =COUNTIF('Crash Data'!CE$21:CE$65000,"=2009") -> 0 | X14: =COUNTIF('Crash Data'!CF$21:CF$65000,"=2009") -> 0 | Y14: =COUNTIF('Crash Data'!CG$21:CG$65000,"=2009") -> 0 | Z14: =COUNTIF('Crash Data'!CH$21:CH$65000,"=2009") -> 0 | AA14: =COUNTIF('Crash Data'!CI$21:CI$65000,"=2009") -> 0 | AB14: =COUNTIF('Crash Data'!CJ$21:CJ$65000,"=2009") -> 0 | AC14: =COUNTIF('Crash Data'!CK$21:CK$65000,"=2009") -> 0 | AD14: =COUNTIF('Crash Data'!CL$21:CL$65000,"=2009") -> 0 | AE14: =COUNTIF('Crash Data'!CM$21:CM$65000,"=2009") -> 0 | AF14: =COUNTIF('Crash Data'!CN$21:CN$65000,"=2009") -> 0 | AG14: =COUNTIF('Crash Data'!CO$21:CO$65000,"=2009") -> 0 | AH14: 0 | AI14: 0 | BV14: 8 | BW14: 6 Upgrade signs - general
A15: 2010 | B15: =COUNTIF('Crash Data'!BJ$21:BJ$65000,"=2010") -> 0 | C15: =COUNTIF('Crash Data'!BK$21:BK$65000,"=2010") -> 0 | D15: =COUNTIF('Crash Data'!BL$21:BL$65000,"=2010") -> 0 | E15: =COUNTIF('Crash Data'!BM$21:BM$65000,"=2010") -> 0 | F15: =COUNTIF('Crash Data'!BN$21:BN$65000,"=2010") -> 0 | G15: =COUNTIF('Crash Data'!BO$21:BO$65000,"=2010") -> 0 | H15: =COUNTIF('Crash Data'!BP$21:BP$65000,"=2010") -> 0 | I15: =COUNTIF('Crash Data'!BQ$21:BQ$65000,"=2010") -> 0 | J15: =COUNTIF('Crash Data'!BR$21:BR$65000,"=2010") -> 0 | K15: =COUNTIF('Crash Data'!BS$21:BS$65000,"=2010") -> 0 | L15: =COUNTIF('Crash Data'!BT$21:BT$65000,"=2010") -> 0 | M15: =COUNTIF('Crash Data'!BU$21:BU$65000,"=2010") -> 0 | N15: =COUNTIF('Crash Data'!BV$21:BV$65000,"=2010") -> 0 | O15: =COUNTIF('Crash Data'!BW$21:BW$65000,"=2010") -> 0 | P15: =COUNTIF('Crash Data'!BX$21:BX$65000,"=2010") -> 0 | Q15: =COUNTIF('Crash Data'!BY$21:BY$65000,"=2010") -> 0 | R15: =COUNTIF('Crash Data'!BZ$21:BZ$65000,"=2010") -> 0 | S15: =COUNTIF('Crash Data'!CA$21:CA$65000,"=2010") -> 0 | T15: =COUNTIF('Crash Data'!CB$21:CB$65000,"=2010") -> 0 | U15: =COUNTIF('Crash Data'!CC$21:CC$65000,"=2010") -> 0 | V15: =COUNTIF('Crash Data'!CD$21:CD$65000,"=2010") -> 0 | W15: =COUNTIF('Crash Data'!CE$21:CE$65000,"=2010") -> 0 | X15: =COUNTIF('Crash Data'!CF$21:CF$65000,"=2010") -> 0 | Y15: =COUNTIF('Crash Data'!CG$21:CG$65000,"=2010") -> 0 | Z15: =COUNTIF('Crash Data'!CH$21:CH$65000,"=2010") -> 0 | AA15: =COUNTIF('Crash Data'!CI$21:CI$65000,"=2010") -> 0 | AB15: =COUNTIF('Crash Data'!CJ$21:CJ$65000,"=2010") -> 0 | AC15: =COUNTIF('Crash Data'!CK$21:CK$65000,"=2010") -> 0 | AD15: =COUNTIF('Crash Data'!CL$21:CL$65000,"=2010") -> 0 | AE15: =COUNTIF('Crash Data'!CM$21:CM$65000,"=2010") -> 0 | AF15: =COUNTIF('Crash Data'!CN$21:CN$65000,"=2010") -> 0 | AG15: =COUNTIF('Crash Data'!CO$21:CO$65000,"=2010") -> 0 | AH15: 0 | AI15: 0 | BV15: 9 | BW15: 7 Lane use signs - overhead
A16: 2011 | B16: =COUNTIF('Crash Data'!BJ$21:BJ$65000,"=2011") -> 0 | C16: =COUNTIF('Crash Data'!BK$21:BK$65000,"=2011") -> 0 | D16: =COUNTIF('Crash Data'!BL$21:BL$65000,"=2011") -> 0 | E16: =COUNTIF('Crash Data'!BM$21:BM$65000,"=2011") -> 0 | F16: =COUNTIF('Crash Data'!BN$21:BN$65000,"=2011") -> 0 | G16: =COUNTIF('Crash Data'!BO$21:BO$65000,"=2011") -> 0 | H16: =COUNTIF('Crash Data'!BP$21:BP$65000,"=2011") -> 0 | I16: =COUNTIF('Crash Data'!BQ$21:BQ$65000,"=2011") -> 0 | J16: =COUNTIF('Crash Data'!BR$21:BR$65000,"=2011") -> 0 | K16: =COUNTIF('Crash Data'!BS$21:BS$65000,"=2011") -> 0 | L16: =COUNTIF('Crash Data'!BT$21:BT$65000,"=2011") -> 0 | M16: =COUNTIF('Crash Data'!BU$21:BU$65000,"=2011") -> 0 | N16: =COUNTIF('Crash Data'!BV$21:BV$65000,"=2011") -> 0 | O16: =COUNTIF('Crash Data'!BW$21:BW$65000,"=2011") -> 0 | P16: =COUNTIF('Crash Data'!BX$21:BX$65000,"=2011") -> 0 | Q16: =COUNTIF('Crash Data'!BY$21:BY$65000,"=2011") -> 0 | R16: =COUNTIF('Crash Data'!BZ$21:BZ$65000,"=2011") -> 0 | S16: =COUNTIF('Crash Data'!CA$21:CA$65000,"=2011") -> 0 | T16: =COUNTIF('Crash Data'!CB$21:CB$65000,"=2011") -> 0 | U16: =COUNTIF('Crash Data'!CC$21:CC$65000,"=2011") -> 0 | V16: =COUNTIF('Crash Data'!CD$21:CD$65000,"=2011") -> 0 | W16: =COUNTIF('Crash Data'!CE$21:CE$65000,"=2011") -> 0 | X16: =COUNTIF('Crash Data'!CF$21:CF$65000,"=2011") -> 0 | Y16: =COUNTIF('Crash Data'!CG$21:CG$65000,"=2011") -> 0 | Z16: =COUNTIF('Crash Data'!CH$21:CH$65000,"=2011") -> 0 | AA16: =COUNTIF('Crash Data'!CI$21:CI$65000,"=2011") -> 0 | AB16: =COUNTIF('Crash Data'!CJ$21:CJ$65000,"=2011") -> 0 | AC16: =COUNTIF('Crash Data'!CK$21:CK$65000,"=2011") -> 0 | AD16: =COUNTIF('Crash Data'!CL$21:CL$65000,"=2011") -> 0 | AE16: =COUNTIF('Crash Data'!CM$21:CM$65000,"=2011") -> 0 | AF16: =COUNTIF('Crash Data'!CN$21:CN$65000,"=2011") -> 0 | AG16: =COUNTIF('Crash Data'!CO$21:CO$65000,"=2011") -> 0 | AH16: 0 | AI16: 0 | BV16: 10 | BW16: 8 Warning signs at intersection - rural
BV17: 11 | BW17: 9 Warning signs on section - rural 2 lane
A18: TOTAL | B18: =SUM(B13:B15) -> 0 | C18: =SUM(C13:C15) -> 0 | D18: 0 | E18: 0 | F18: 0 | G18: 0 | H18: 0 | I18: 0 | J18: 0 | K18: 0 | L18: 0 | M18: 0 | N18: 0 | O18: 0 | P18: 0 | Q18: 0 | R18: 0 | S18: 0 | T18: 0 | U18: 0 | V18: 0 | W18: 0 | X18: 0 | Y18: 0 | Z18: 0 | AA18: 0 | AB18: 0 | AC18: 0 | AD18: 0 | AE18: 0 | AF18: 0 | AG18: 0 | AH18: 0 | AI18: 0 | BV18: 12 | BW18: 9a Warning signs on section - rural > 2 lane
A19: AVG. | B19: =AVERAGE(B13:B15) -> 0 | C19: =AVERAGE(C13:C15) -> 0 | D19: 0 | E19: 0 | F19: 0 | G19: 0 | H19: 0 | I19: 0 | J19: 0 | K19: 0 | L19: 0 | M19: 0 | N19: 0 | O19: 0 | P19: 0 | Q19: 0 | R19: 0 | S19: 0 | T19: 0 | U19: 0 | V19: 0 | W19: 0 | X19: 0 | Y19: 0 | Z19: 0 | AA19: 0 | AB19: 0 | AC19: 0 | AD19: 0 | AE19: 0 | AF19: 0 | AG19: 0 | AH19: 0 | AI19: 0 | BV19: 13 | BW19: 57 Install/Improve warning signs on rural curves [curve crashes only]
A20: --The "TOTAL" and "AVERAGE" row formulas are set to only use 2008-2010 crash data. If the crash data is not for these three years, the formulas must be modified by the user to calculate the associated year data. | BV20: 14 | BW20: 30 Install warning sign-mounted flasher
A21: RECOMMENDED IMPROVEMENTS | M21: CRASH TYPE | O21: PDO CRASHES | X21: INJ. - FAT. CRASHES | BV21: 15 | BW21: 31 Install PTSWF sign/flasher [for approach speeds > 45 mph]
B22: Select Countermeasures | O22: R1 | P22: R2 | Q22: R3 | R22: R4 | S22: RT | T22: AVG PDO | V22: EST. RED. | X22: R1 | Y22: R2 | Z22: R3 | AA22: R4 | AB22: RT | AC22: AVG INJ-FAT | AF22: EST. RED. | BV22: 16 | BW22: 58 Install/Improve warning signs on sections - rural 2 lane
A23: R1 | M23: =P9 -> LEFT | S23: =O23+(1-O23)*P23+(1-O23)*(1-P23)*Q23+(1-O23)*(1-P23)*(1-Q23)*R23 -> 0 | T23: =P19 -> 0 | V23: =S23*T23 -> 0 | AB23: =X23+(1-X23)*Y23+(1-X23)*(1-Y23)*Z23+(1-X23)*(1-Y23)*(1-Z23)*AA23 -> 0 | AC23: =Q19 -> 0 | AF23: =AB23*AC23 -> 0 | BV23: 17 | BW23: 58a Install/Improve warning signs on sections - rural > 2 lane
A24: R2 | M24: =R9 -> RIGHT | S24: 0 | T24: =R19 -> 0 | V24: 0 | AB24: 0 | AC24: =S19 -> 0 | AF24: 0 | BV24: 18 | BW24: 59 Install/Improve warning signs on sections - urban 2 lane
A25: R3 | M25: =T9 -> ANGLE | S25: 0 | T25: =T19 -> 0 | V25: 0 | AB25: 0 | AC25: =U19 -> 0 | AF25: 0 | BV25: 19 | BW25: 59a Install/Improve warning signs on sections - urban > 2 lane
A26: R4 | M26: =N9 -> REAR END | S26: 0 | T26: =N19 -> 0 | V26: 0 | AB26: 0 | AC26: =O19 -> 0 | AF26: 0 | BV26: 20 | BW26: 60 Install delineators at curve - rural [Curve crashes only]
M27: =V9 -> HEAD ON | S27: 0 | T27: =V19 -> 0 | V27: 0 | AB27: 0 | AC27: =W19 -> 0 | AF27: 0 | BV27: 21 | BW27: 13 Install concrete median barrier [median and cross-median crashes only]
M28: =X9 -> SS PASS | S28: 0 | T28: =X19 -> 0 | V28: 0 | AB28: 0 | AC28: =Y19 -> 0 | AF28: 0 | BV28: 22 | BW28: 14 Install painted median
M29: =Z9 -> FIXED OBJ | S29: 0 | T29: =Z19 -> 0 | V29: 0 | AB29: 0 | AC29: =AA19 -> 0 | AF29: 0 | BV29: 23 | BW29: 15 Install two-way left turn lane
M30: =AB9 -> RAN OFF RD | S30: 0 | T30: =AB19 -> 0 | V30: 0 | AB30: 0 | AC30: =AC19 -> 0 | AF30: 0 | BV30: 24 | BW30: 41 Flatten vertical curve
M31: =AF9 -> OTHER | S31: 0 | T31: =AF19 -> 0 | V31: 0 | AB31: 0 | AC31: =AG19 -> 0 | AF31: 0 | AL31: Do Not Modify Cells Below | BV31: 25 | BW31: 16 Install left turn bay & extra pavement without signal
M32: NIGHT | S32: 0 | T32: =F19 -> 0 | V32: 0 | AB32: 0 | AC32: =G19 -> 0 | AF32: 0 | AL32: 3 | BV32: 26 | BW32: 17 Install left turn bay & extra pavement with signal
M33: =J9 -> WET | S33: 0 | T33: =J19 -> 0 | V33: 0 | AB33: 0 | AC33: =K19 -> 0 | AF33: 0 | AL33: 5 | BV33: 27 | BW33: 37 Widen roadway, rural section, no additional lanes
M34: =AD9 -> PEDESTRIAN | S34: 0 | T34: =AD19 -> 0 | V34: 0 | AB34: 0 | AC34: =AE19 -> 0 | AF34: 0 | AL34: 10 | BV34: 28 | BW34: 38 Widen roadway, rural section, including additional lanes
AL35: 15 | BV35: 29 | BW35: 39 Widen for left turn lane, including resurfacing
AL36: 20 | BV36: 30 | BW36: 40 Widen for right turn lane, including resurfacing
O37: ESTIMATED PDO CRASH REDUCTION = | V37: =SUM(V23:W34) -> 0 | X37: ESTIMATED INJ. - FAT. CRASH REDUCTION = | AF37: =SUM(AF23:AG34) -> 0 | AL37: 25 | BV37: 31 | BW37: 42 Stabilize berms - rural section
A38: ADT Factor | AL38: 30 | BV38: 32 | BW38: 20 Upgrade existing flasher
A39: Project Service Life | F39: 20 | G39: years | BV39: 33 | BW39: 21 Install flasher
A40: Present ADT (PADT) | F40: 22465 | G40: veh / day | N40: Average ADT = | Q40: (PADT + FADT)/2 = ( | U40: =F40 -> 22465 | W40: + | X40: =F41 -> 24560 | Z40: ) = | AA40: =(U40+X40)/2 -> 23512.5 | BV40: 34 | BW40: 22 Upgrade existing signal - general
A41: Future ADT (FADT) | F41: 24560 | G41: veh / day | N41: ADT Factor = | Q41: Average ADT / PADT = | U41: =AA40 -> 23512.5 | W41: / | X41: =F40 -> 22465 | Z41: = | AA41: =U41/X41 -> 1.046628088 | AL41: NPV | AM41: 0 | AN41: 1 | AO41: 2 | AP41: 3 | AQ41: 4 | AR41: 5 | AS41: 6 | AT41: 7 | AU41: 8 | AV41: 9 | AW41: 10 | AX41: 11 | AY41: 12 | AZ41: 13 | BA41: 14 | BB41: 15 | BC41: 16 | BD41: 17 | BE41: 18 | BF41: 19 | BG41: 20 | BH41: 21 | BI41: 22 | BJ41: 23 | BK41: 24 | BL41: 25 | BM41: 26 | BN41: 27 | BO41: 28 | BP41: 29 | BQ41: 30 | BV41: 35 | BW41: 23 Reconstruct existing signal - major
AK42: 3 Years | AL42: =NPV($Z$51,AN42:BG42,$K$52)-$K$50 -> -1292872.941 | AM42: =-$K$50 -> -1300000 | AN42: =$AC$47-$K$51 -> 0 | AO42: 0 | AP42: =$AC$47-$K$51+$K$52 -> 1000 | BV42: 36 | BW42: 24 Install traffic signal - all types
A43: Average Annual Benefits | AK43: 5 Years | AL43: =NPV($Z$51,AN43:BG43,$K$52)-$K$50 -> -1285401.62 | AM43: -1300000 | AN43: 0 | AO43: 0 | AP43: =$AC$47-$K$51 -> 0 | AQ43: 0 | AR43: =$AC$47-$K$51+$K$52 -> 1000 | BV43: 37 | BW43: 25 Revise signal timing
A44: Annual PDO Benefits = Estimated PDO Crash Reduction * Avg PDO Cost | O44: Select Facility Type Below: | U44: = | V44: =V37 -> 0 | X44: * | Y44: =IF(O45="Rural State Highways",BX85,IF(O45="Counties and Unincorporated Villages",BX86,BX87)) -> 9031.9149 | AB44: = | AC44: =V44*Y44 -> 0 | AK44: 10 Years | AL44: =NPV(Z51,AN44:AW44,K52)-K50 -> -1212342.213 | AM44: -1300000 | AN44: 0 | AO44: 0 | AP44: 0 | AQ44: 0 | AR44: =$AC$47-$K$51 -> 0 | AS44: 0 | AT44: 0 | AU44: 0 | AV44: 0 | AW44: =$AC$47-$K$51+$K$52 -> 1000 | BV44: 38 | BW44: 26 Add pedestrian heads
A45: Annual INJ.-FAT. Benefits = Estimated INJ.-FAT. Crash Reduction * Avg INJ.-FAT. Cost | O45: Rural State Highways | U45: = | V45: =AF37 -> 0 | X45: * | Y45: =IF(O45="Rural State Highways",BY85,IF(O45="Counties and Unincorporated Villages",BY86,BY87)) -> 88748.19062 | AB45: = | AC45: =V45*Y45 -> 0 | AK45: 15 Years | AL45: =NPV(Z51,AN45:BB45,K52)-K50 -> -773647.9229 | AM45: -1300000 | AN45: 0 | AO45: 0 | AP45: 0 | AQ45: 0 | AR45: 0 | AS45: 0 | AT45: 0 | AU45: 0 | AV45: 0 | AW45: =$AC$47-$K$51 -> 0 | AX45: 0 | AY45: 0 | AZ45: 0 | BA45: 0 | BB45: =$AC$47-$K$51+$K$52 -> 1000 | BV45: 39 | BW45: 27 Add left turn phase with new left turn lane
A46: Total Benefits | AB46: = | AC46: =SUM(AC44:AE45) -> 0 | AK46: 20 Years | AL46: =NPV($Z$51,AN46:BG46,$K$52)-$K$50 -> 1860546.463 | AM46: -1300000 | AN46: 0 | AO46: 0 | AP46: 0 | AQ46: 0 | AR46: 0 | AS46: 0 | AT46: 0 | AU46: 0 | AV46: 0 | AW46: 0 | AX46: 0 | AY46: 0 | AZ46: 0 | BA46: 0 | BB46: =$AC$47-$K$51 -> 0 | BC46: 0 | BD46: 0 | BE46: 0 | BF46: 0 | BG46: =$AC$47-$K$51+$K$52 -> 1000 | BV46: 40 | BW46: 28 Add left turn phase with existing left turn lane
A47: AverageAnnual Benefits = Total Benefits * ADT Factor | U47: = | V47: =AA41 -> 1.046628088 | X47: * | Y47: =AC46 -> 0 | AB47: = | AC47: =Y47*V47 -> 0 | AK47: 25 Years | AL47: =NPV(Z51,AN47:BL47,K52)-K50 -> 17677894.03 | AM47: -1300000 | AN47: 0 | AO47: 0 | AP47: 0 | AQ47: 0 | AR47: 0 | AS47: 0 | AT47: 0 | AU47: 0 | AV47: 0 | AW47: 0 | AX47: 0 | AY47: 0 | AZ47: 0 | BA47: 0 | BB47: 0 | BC47: 0 | BD47: 0 | BE47: 0 | BF47: 0 | BG47: =$AC$47-$K$51 -> 0 | BH47: 0 | BI47: 0 | BJ47: 0 | BK47: 0 | BL47: =$AC$47-$K$51+$K$52 -> 1000 | BV47: 41 | BW47: 29 Add left turn phase without left turn lane
AK48: 30 Years | AL48: =NPV(Z51,AN48:BQ48,K52)-K50 -> 112655123.3 | AM48: -1300000 | AN48: 0 | AO48: 0 | AP48: 0 | AQ48: 0 | AR48: 0 | AS48: 0 | AT48: 0 | AU48: 0 | AV48: 0 | AW48: 0 | AX48: 0 | AY48: 0 | AZ48: 0 | BA48: 0 | BB48: 0 | BC48: 0 | BD48: 0 | BE48: 0 | BF48: 0 | BG48: 0 | BH48: 0 | BI48: 0 | BJ48: 0 | BK48: 0 | BL48: =$AC$47-$K$51 -> 0 | BM48: =$AC$47-$K$51 -> 0 | BN48: =$AC$47-$K$51 -> 0 | BO48: =$AC$47-$K$51 -> 0 | BP48: =$AC$47-$K$51 -> 0 | BQ48: =$AC$47-$K$51+$K$52 -> 1000 | BV48: 42 | BW48: 32 Install optically programmed heads
A49: Rate of Return | BV49: 43 | BW49: 33 Remove existing, unwarranted signal
A50: Total Safety Project Cost (Design, Right-of-Way, and Construction) | K50: =R50+R51+R52 -> 1300000 | O50: Design (PE) | R50: =IF(R52<100000,0,R52*0.1) -> 100000 | BV50: 44 | BW50: 61 Provide signal interconnection
A51: Annual Maintenance and Energy Costs | K51: 0 | O51: Right-of-Way | R51: 200000 | V51: Rate of Return | Z51: =IF(F39="20",IRR(AM46:BG46,-0.2),IF(F39="10",IRR(AM44:AW44,-0.2),IF(F39="15",IRR(AM45:BB45,-0.2),IF(F39="25",IRR(AM47:BL47,-0.2),IF(F39="30",IRR(AM48:BQ48,-0.2),IF(F39="5",IRR(AM43:AR43,-0.2),IF(F39="3",IRR(AM42:AP42,-0.2),"Invalid Year Entry"))))))) -> -0.3012805505 | BV51: 45 | BW51: 34 Install intersection lighting
A52: Salvage Value | K52: 1000 | O52: Construction | R52: 1000000 | BV52: 46 | BW52: 35 Install section lighting
A53: See Text Box Below for Additional Details on Project Costs for ODOT Safety Projects | BV53: 47 | BW53: 36 Upgrade existing lighting
V54: Please note: if the ROR value is displayed as #NUM! or #DIV/0!, the ROR is | BV54: 48 | BW54: 43 Replace culvert
V55: either an extremely large positive or negative value and cannot be calculated | BV55: 49 | BW55: 44 Replace bridge
V56: within a reasonable number of iterations. | BV56: 50 | BW56: 45 Widen bridge
BV57: 51 | BW57: 46 Widen culvert
BV58: 52 | BW58: 62 Install guard rail at bridge end [Injury-fatal crashes only]
BV59: 53 | BW59: 49 Install guard rail [Injury-fatal crashes only]
BV60: 54 | BW60: 63 Improve guard rail [Injury-fatal crashes only]
BV61: 55 | BW61: 50 Remove or relocate fixed object to a safe distance from the roadway
BV62: 56 | BW62: 64 Make utility pole breakaway [Utility pole fatal crashes only]
BV63: 57 | BW63: 65 Relocate utility pole 3 0' from edge of pavement [Utility pole fatal crashes only]
BV64: 58 | BW64: 66 Remove utility pole [Utility pole fatal crashes only]
BV65: 59 | BW65: 67 Remove tree [Tree crashes only]
BV66: 60 | BW66: 68 Make sign support breakaway - all sizes [Sign injury-fatal crashes only]
BV67: 61 | BW67: 69 Install auto. prot. device at R/R grade crossing [Train-vehicle crashes only]
BV68: 62 | BW68: 48 Install impact attenuator device [Injury-fatal crashes only]
BV69: 63 | BW69: 47 Eliminate fixed objects
BV70: 64 | BW70: 55 Improve horizontal alignment - rural section
BV71: 65 | BW71: 70 Reconstruct curves on rural section - 2 lane [Curve crashes only]
BV72: 66 | BW72: 10 Eliminate parking
BV73: 67 | BW73: 11 Speed zone
BV74: 68 | BW74: 12 Prohibit turn
BV75: 69 | BW75: 18 Close median opening
BV76: 70 | BW76: 19 Relocate driveway entrance
BV77: 71 | BW77: 51 Relocate intersection
BV78: 72 | BW78: 52 Increase cross corner sight distance
BV79: 73 | BW79: 71 Prohibit right-turn-on-red
BV80: 74 | BW80: 53 Install rumble strips
BV81: 75 | BW81: 54 Provide proper super-elevation on curve - rural [curve crashes only]
BZ83: Cost of crashes for determing ROR (Updated - 2010)
BX84: PDO | BY84: INJ/FAT | BZ84: SYSTEM
BX85: 9031.9149 | BY85: 88748.19062 | BZ85: Rural State Highways
BX86: 8441.785553 | BY86: 84402.54629 | BZ86: Counties and Unincorporated Villages
BX87: 9525.008919 | BY87: 78553.11799 | BZ87: Cities and Incorporated Villages

Sheet Safety App
A6: Location | B6: Location Type | C6: Facility Type | D6: Begin Log | E6: End Log | F6: Length | G6: Fatal Crashes | H6: Injury Crashes | I6: PDO Crashes | J6: Total Crashes | K6: Fatalities | L6: Incapacitating Injuries | M6: # of Years | N6: ADT (Or Intersection Entering Volume) | O6: Truck ADT | P6: V/C
A7: ='Crash Data'!D12&"-"&'Crash Data'!D13&'Crash Data'!D14 -> - | C7: =G34 -> Rural Non-Freeway | D7: ='Crash Data'!D15 -> 0 | E7: ='Crash Data'!D16 -> 0 | F7: =IF(B7="Section",E7-D7,1) -> 1 | G7: =IF(ISERROR(VLOOKUP("FATAL CRASH",'Data Analysis'!$A$10:$B$12,2,FALSE)),VALUE(0),VLOOKUP("FATAL CRASH",'Data Analysis'!$A$10:$B$12,2,FALSE)) -> 0 | H7: =IF(ISERROR(VLOOKUP("INJURY CRASH",'Data Analysis'!$A$10:$B$12,2,FALSE)),VALUE(0),VLOOKUP("INJURY CRASH",'Data Analysis'!$A$10:$B$12,2,FALSE)) -> 0 | I7: =IF(ISERROR(VLOOKUP("PROPERTY DAMAGE CRASH",'Data Analysis'!$A$10:$B$12,2,FALSE)),VALUE(0),VLOOKUP("PROPERTY DAMAGE CRASH",'Data Analysis'!$A$10:$B$12,2,FALSE)) -> 0 | J7: =SUM(G7:I7) -> 0 | K7: =VLOOKUP("Grand Total",'Data Analysis'!$K$23:$M$39,2,FALSE) -> 0 | L7: =VLOOKUP("Grand Total",'Data Analysis'!$K$23:$M$39,3,FALSE) -> 0 | M7: 3
A9: Year | B9: 2010 | D9: Rate of Return: | E9: =IF(ISERROR('ROR Analysis'!Z51),VALUE(0),'ROR Analysis'!Z51) -> -0.3012805505 | K9: High Risk Rural Road Calculation: | L9: =IF(ISERROR(((K7+L7)*100000000)/(M7*365*F7*N7)),VALUE(0),((K7+L7)*100000000)/(M7*365*F7*N7)) -> 0
A10: HSP Rank | I10: (Fatalities & Incapacitating Injuries per 100 MVMT or Entering Vehicles)
A11: Hot Spot Rank
A12: Congestion Rank | J12: Functional Class :
I13: (Must be Rural Major Collector, Minor Collector, or Rural Local Road for HRRR Funding)
J14: HRRR Eligible : | K14: =IF(K12=0,"",IF(L9>VLOOKUP(K12,$AK$36:$AL$38,2,FALSE),"Yes","No")) -> 
A19: Safety Project Scoring
A21: Crash Frequency (10) | C21: Crash Density (10) | E21: Crash Rate (10) | G21: RSI (15) | I21: EPDO Rate (5) | K21: % Trucks (5) | M21: Rate of Return (5) | O21: V/C Ratio (5)
A22: Value | B22: Score | C22: Value | D22: Score | E22: Value | F22: Score | G22: Value | H22: Score | I22: Value | J22: Score | K22: Value | L22: Score | M22: Value | N22: Score | O22: Value | P22: Score
A23: =IF(ISERROR(IF(B7="Intersection",J7,"")),VALUE(0),IF(B7="Intersection",J7,"")) ->  | B23: =IF(ISERROR(IF($B$7="Section","",VLOOKUP(A23,$Q$36:$R$46,2,TRUE))),VALUE(0),IF($B$7="Section","",VLOOKUP(A23,$Q$36:$R$46,2,TRUE))) -> 0 | C23: =IF(ISERROR(IF(B7="Section",J7/F7,"")),VALUE(0),IF(B7="Section",J7/F7,"")) ->  | D23: =IF(ISERROR(IF($B$7="Intersection","",VLOOKUP(C23,$S$36:$T$46,2,TRUE))),VALUE(0),IF($B$7="Intersection","",VLOOKUP(C23,$S$36:$T$46,2,TRUE))) -> 0 | E23: =IF(ISERROR((J7*1000000)/(M7*365*F7*N7)),VALUE(0),(J7*1000000)/(M7*365*F7*N7)) -> 0 | F23: =IF(ISERROR(VLOOKUP(E23,$U$36:$V$46,2,TRUE)),VALUE(0),(VLOOKUP(E23,$U$36:$V$46,2,TRUE))) -> 0 | G23: =IF(ISERROR(G32),VALUE(0),G32) -> 28801.02478 | H23: =IF(ISERROR(VLOOKUP(G23,$W$36:$X$51,2,TRUE)),VALUE(0),VLOOKUP(G23,$W$36:$X$51,2,TRUE)) -> 8 | I23: =IF(ISERROR(((AI36*G7+AI37*H7+AI38*I7)*1000000)/(N7*M7*365*F7)),VALUE(0),((AI36*G7+AI37*H7+AI38*I7)*1000000)/(N7*M7*365*F7)) -> 0 | J23: =IF(ISERROR(VLOOKUP(I23,$Y$36:$Z$51,2,TRUE)),VALUE(0),VLOOKUP(I23,$Y$36:$Z$51,2,TRUE)) -> 0 | K23: =IF(ISERROR(O7/N7),VALUE(0),O7/N7) -> 0 | L23: =IF(ISERROR(VLOOKUP(K23,$AA$36:$AB$51,2,TRUE)),VALUE(0),VLOOKUP(K23,$AA$36:$AB$51,2,TRUE)) -> 0 | M23: =IF(ISERROR(E9),VALUE(0),E9) -> -0.3012805505 | N23: =IF(ISERROR(VLOOKUP(M23,$AC$36:$AD$51,2,TRUE)),VALUE(0),VLOOKUP(M23,$AC$36:$AD$51,2,TRUE)) -> 0 | O23: =IF(ISERROR(P7),VALUE(0),P7) -> 0 | P23: =IF(ISERROR(VLOOKUP(O23,$AE$36:$AF$51,2,TRUE)),VALUE(0),VLOOKUP(O23,$AE$36:$AF$51,2,TRUE)) -> 0
A25: Total Score = | B25: =IF(B7="Section",D23+F23+H23+J23+L23+N23+P23,IF(B7="Intersection",B23+F23+H23+J23+L23+N23+P23,"")) -> 
F32: RSI Value = | G32: ='Severity Calc Sheet'!C3 -> 28801.02478
G34: ='Severity Calc Sheet'!C1 -> Rural Non-Freeway
Q35: Crash Frequency | R35: Points | S35: Crash Density | T35: Points | U35: Crash Rate | V35: Points | W35: RSI | X35: Points | Y35: EPDO Rate | Z35: Points | AA35: % Trucks | AB35: Points | AC35: Rate of Return | AD35: Points | AE35: V/C | AF35: Points | AH35: 2010 | AL35: HRRR Local Values
Q36: 0 | R36: 0 | S36: 0 | T36: 0 | U36: 0 | V36: 0 | W36: 0 | X36: 0 | Y36: 0 | Z36: 0 | AA36: 0 | AB36: 0 | AC36: 0 | AD36: 0 | AE36: 0 | AF36: 0 | AG36: Rural Non-Freeway | AH36: Fatal Crash | AI36: 123.0182193 | AJ36: Section | AK36: Rural Major Collector | AL36: 12.09833324
Q37: 10 | R37: 1 | S37: 10 | T37: 1 | U37: 1 | V37: 1 | W37: 21000 | X37: 1 | Y37: 5 | Z37: 1 | AA37: 0.05 | AB37: 1 | AC37: 0.05 | AD37: 1 | AE37: 0.6 | AF37: 1 | AG37: Urban Non-Freeway | AH37: Injury Crash | AI37: 7.078792799 | AJ37: Intersection | AK37: Rural Minor Collector | AL37: 12.86004696
Q38: 15 | R38: 2 | S38: 20 | T38: 2 | U38: 1.5 | V38: 2 | W38: 22000 | X38: 2 | Y38: 10 | Z38: 2 | AA38: 0.1 | AB38: 2 | AC38: 0.1 | AD38: 2 | AE38: 0.7 | AF38: 2 | AG38: Freeway | AH38: PDO Crash | AI38: 1 | AK38: Rural Local Road | AL38: 6.543304675
Q39: 20 | R39: 3 | S39: 30 | T39: 3 | U39: 2 | V39: 3 | W39: 23000 | X39: 3 | Y39: 20 | Z39: 3 | AA39: 0.15 | AB39: 3 | AC39: 0.15 | AD39: 3 | AE39: 0.8 | AF39: 3
Q40: 25 | R40: 4 | S40: 40 | T40: 4 | U40: 2.5 | V40: 4 | W40: 24000 | X40: 4 | Y40: 30 | Z40: 4 | AA40: 0.2 | AB40: 4 | AC40: 0.2 | AD40: 4 | AE40: 0.9 | AF40: 4
Q41: 30 | R41: 5 | S41: 50 | T41: 5 | U41: 3 | V41: 5 | W41: 25000 | X41: 5 | Y41: 40 | Z41: 5 | AA41: 0.25 | AB41: 5 | AC41: 0.25 | AD41: 5 | AE41: 1 | AF41: 5
Q42: 35 | R42: 6 | S42: 60 | T42: 6 | U42: 3.5 | V42: 6 | W42: 26000 | X42: 6
Q43: 40 | R43: 7 | S43: 70 | T43: 7 | U43: 4 | V43: 7 | W43: 27000 | X43: 7
Q44: 45 | R44: 8 | S44: 80 | T44: 8 | U44: 4.5 | V44: 8 | W44: 28000 | X44: 8
Q45: 50 | R45: 9 | S45: 90 | T45: 9 | U45: 5 | V45: 9 | W45: 29000 | X45: 9
Q46: 55 | R46: 10 | S46: 100 | T46: 10 | U46: 5.5 | V46: 10 | W46: 30000 | X46: 10
W47: 31000 | X47: 11
W48: 32000 | X48: 12
W49: 33000 | X49: 13
W50: 34000 | X50: 14
W51: 35000 | X51: 15

Sheet CRF Table
B1: Estimates of Countermeasure Effectiveness Reduction (CRF) Factors
B2: (September 1997, Revised July 2007)
A4: ID | B4: Description | C4: All | D4: PDO | E4: INJ/FAT | F4: Night | G4: Wet | H4: Pedestrian | I4: Left | J4: Right | K4: Angle | L4: Rear | M4: Head | N4: Side | O4: Fixed | P4: Ran
A6: 1 | B6: 1 Upgrade pavement markings - general | C6: 0.1
A7: 2 | B7: 2 Install raised pavement markers, locations & sections | C7: 0.09
A8: 3 | B8: 3 Install plastic pavement markings | C8: 0.1
A9: 4 | B9: 4 De-slick pavement - sections [except wet pavement crashes] | C9: 0.2 | G9: 0.5
A10: 5 | B10: 5 Resurface - rural sections - 2 lane | C10: 0.12 | E10: 0.21
A11: 6 | B11: 5a Resurface - rural sections > 2 lane | C11: 0.44 | E11: 0.59
A12: 7 | B12: 56 Resurface - urban section > 2 lane | C12: 0.42 | E12: 0.46
A13: 8 | B13: 6 Upgrade signs - general | C13: 0.05
A14: 9 | B14: 7 Lane use signs - overhead | L14: 0.1 | N14: 0.2
A15: 10 | B15: 8 Warning signs at intersection - rural | C15: 0.2 | E15: 0.25
A16: 11 | B16: 9 Warning signs on section - rural 2 lane | C16: 0.36 | E16: 0.32
A17: 12 | B17: 9a Warning signs on section - rural > 2 lane | C17: 0.18 | E17: 0.03
A18: 13 | B18: 57 Install/Improve warning signs on rural curves [curve crashes only] | C18: 0.2
A19: 14 | B19: 30 Install warning sign-mounted flasher | C19: 0.3
A20: 15 | B20: 31 Install PTSWF sign/flasher [for approach speeds > 45 mph] | L20: 0.6
A21: 16 | B21: 58 Install/Improve warning signs on sections - rural 2 lane | C21: 0.36 | E21: 0.32
A22: 17 | B22: 58a Install/Improve warning signs on sections - rural > 2 lane | C22: 0.18 | E22: 0.03
A23: 18 | B23: 59 Install/Improve warning signs on sections - urban 2 lane | C23: 0.14 | E23: 0.14
A24: 19 | B24: 59a Install/Improve warning signs on sections - urban > 2 lane | C24: 0.26 | E24: 0.2
A25: 20 | B25: 60 Install delineators at curve - rural [Curve crashes only] | C25: 0.16
A26: 21 | B26: 13 Install concrete median barrier [median and cross-median crashes only] | E26: 0.61
A27: 22 | B27: 14 Install painted median | C27: 0.12
A28: 23 | B28: 15 Install two-way left turn lane | C28: 0.083 | E28: 0.2
A29: 24 | B29: 41 Flatten vertical curve | C29: 0.2 | E29: 0.51
A30: 25 | B30: 16 Install left turn bay & extra pavement without signal | I30: 0.2 | L30: 0.2
A31: 26 | B31: 17 Install left turn bay & extra pavement with signal | I31: 0.2 | L31: 0.2
A32: 27 | B32: 37 Widen roadway, rural section, no additional lanes | C32: 0.38 | E32: 0.3
A33: 28 | B33: 38 Widen roadway, rural section, including additional lanes | C33: 0.38 | E33: 0.3
A34: 29 | B34: 39 Widen for left turn lane, including resurfacing | I34: 0.2 | L34: 0.2 | N34: 0.2
A35: 30 | B35: 40 Widen for right turn lane, including resurfacing | J35: 0.2 | L35: 0.2 | N35: 0.2
A36: 31 | B36: 42 Stabilize berms - rural section | C36: 0.38 | E36: 0.3
A37: 32 | B37: 20 Upgrade existing flasher | C37: 0.2
A38: 33 | B38: 21 Install flasher | C38: 0.5
A39: 34 | B39: 22 Upgrade existing signal - general | C39: 0.2
A40: 35 | B40: 23 Reconstruct existing signal - major | C40: 0.27
A41: 36 | B41: 24 Install traffic signal - all types | I41: 0.1 | J41: 0.1 | K41: 0.8 | L41: -0.1 | N41: 0.1
A42: 37 | B42: 25 Revise signal timing | C42: 0.1
A43: 38 | B43: 26 Add pedestrian heads | H43: 0.5
A44: 39 | B44: 27 Add left turn phase with new left turn lane | I44: 0.4 | L44: 0.2
A45: 40 | B45: 28 Add left turn phase with existing left turn lane | I45: 0.3 | L45: 0.1
A46: 41 | B46: 29 Add left turn phase without left turn lane | I46: 0.2
A47: 42 | B47: 32 Install optically programmed heads | I47: 0.1 | K47: 0.1 | L47: 0.1 | M47: 0.2
A48: 43 | B48: 33 Remove existing, unwarranted signal
A49: 44 | B49: 61 Provide signal interconnection
A50: 45 | B50: 34 Install intersection lighting | F50: 0.75
A51: 46 | B51: 35 Install section lighting | F51: 0.5
A52: 47 | B52: 36 Upgrade existing lighting | F52: 0.5
A53: 48 | B53: 43 Replace culvert | O53: 0.6
A54: 49 | B54: 44 Replace bridge | O54: 0.62
A55: 50 | B55: 45 Widen bridge | O55: 0.43
A56: 51 | B56: 46 Widen culvert | O56: 0.25
A57: 52 | B57: 62 Install guard rail at bridge end [Injury-fatal crashes only] | O57: 0.2
A58: 53 | B58: 49 Install guard rail [Injury-fatal crashes only] | O58: 0.2 | P58: 0.2
A59: 54 | B59: 63 Improve guard rail [Injury-fatal crashes only] | O59: 0.2
A60: 55 | B60: 50 Remove or relocate fixed object to a safe distance from the roadway | C60: 0.38 | E60: 0.38
A61: 56 | B61: 64 Make utility pole breakaway [Utility pole fatal crashes only] | O61: 0.3
A62: 57 | B62: 65 Relocate utility pole 3 0' from edge of pavement [Utility pole fatal crashes only] | O62: 0.32
A63: 58 | B63: 66 Remove utility pole [Utility pole fatal crashes only] | O63: 0.38
A64: 59 | B64: 67 Remove tree [Tree crashes only] | O64: 0.25
A65: 60 | B65: 68 Make sign support breakaway - all sizes [Sign injury-fatal crashes only] | O65: 0.24
A66: 61 | B66: 69 Install auto. prot. device at R/R grade crossing [Train-vehicle crashes only] | C66: 0.28
A67: 62 | B67: 48 Install impact attenuator device [Injury-fatal crashes only] | O67: 0.5
A68: 63 | B68: 47 Eliminate fixed objects | O68: 1
A69: 64 | B69: 55 Improve horizontal alignment - rural section | C69: 0.4
A70: 65 | B70: 70 Reconstruct curves on rural section - 2 lane [Curve crashes only] | C70: 0.88
A71: 66 | B71: 10 Eliminate parking
A72: 67 | B72: 11 Speed zone
A73: 68 | B73: 12 Prohibit turn | C73: 0.4
A74: 69 | B74: 18 Close median opening
A75: 70 | B75: 19 Relocate driveway entrance | I75: 0.1 | J75: 0.1 | K75: 0.1 | L75: 0.2 | M75: 0.2
A76: 71 | B76: 51 Relocate intersection | C76: 0.25
A77: 72 | B77: 52 Increase cross corner sight distance | K77: 0.5
A78: 73 | B78: 71 Prohibit right-turn-on-red | J78: 0.2
A79: 74 | B79: 53 Install rumble strips
A80: 75 | B80: 54 Provide proper super-elevation on curve - rural [curve crashes only] | C80: 0.5
B83: When using multiple countermeasures, the total reduction fator is:
B84: R1 + (1-R1)R2 + (1-R1)(1-R2)R3 + (1-R1) (1-R2)(1-R3)R4 + …….. = RT
B85: Cost of crashes for determing ROR (Updated - 2009)
B86: SYSTEM | C86: PDO | D86: INJ/FAT
B87: Rural State Highways | C87: 8945.936339 | D87: 85893.03605
B88: Counties and Unincorporated Villages | C88: 8388.402773 | D88: 84367.36206
B89: Cities and Incorporated Villages | C89: 9253.523013 | D89: 78992.88188

Sheet Help File
D1: Crash Data | G1: Graphical Analysis | J1: Collision Diagram | M1: Rate Calc Sheet | P1: ROR Analysis | S1: CRF Table | BO1: CAM Tool Created by Jonathan Hughes
D2: Data Analysis | G2: Histograms | J2: Resurfacing Analysis | M2: Severity Calc Sheet | P2: Safety App | S2: Help File | BO2: All Rights Reserved
A4: For additional questions contact Jonathan Hughes 614-466-4019 or jonathan.hughes@dot.state.oh.us (Office of Systems Planning and Program Management) | AI4: Do Not Modify
A5: Click to go to Latest Updates | U5: ='Crash Data'!A2 -> version: 11.02.11 | AI5: REAR END | AJ5: NORTH | AK5: N
AI6: FIXED OBJECT | AJ6: SOUTH | AK6: S
AI7: ANGLE | AJ7: EAST | AK7: E
AI8: ANIMAL | AJ8: WEST | AK8: W
C9: DO NOT store this model on your C:drive to use since it may be updated occasionally, the latest version will be on the GIS Crash Analysis Tool Website! | AI9: SIDESWIPE - PASSING | AJ9: NORTHEAST | AK9: NE
AI10: HEAD ON | AJ10: NORTHWEST | AK10: NW
AI11: SIDESWIPE - MEETING | AJ11: SOUTHWEST | AK11: SW
AI12: BACKING | AJ12: SOUTHEAST | AK12: SE
AI13: PEDESTRIAN | AJ13: UNKNOWN | AK13: U
AI14: PARKED VEHICLE
AI15: LEFT TURN
AI16: RIGHT TURN
C20: Click the button to access the CAM Tool GCAT Toolbox (or use the shortcut "Ctrl" + "t" )
A983: Go to Crash Data Tab
A985: Go to top of page - Help File
A988: For additional questions contact Jonathan Hughes 614-466-4019 or jonathan.hughes@dot.state.oh.us (Office of Systems Planning and Program Managment)
A990: DO NOT store this model on your C:drive to use since it may be updated occasionally, the latest version will be on the GCAT Webpage!
